{"text_format":"1","workbook":"xlsx","n_sheets":14,"sheets":["Hoofdmenu","Toelichting","NAW_gegevens","Mededelingen","Voorblad","Kostenverzamelstaat","Zorg via CAK - AK en ZMV","Zorg via CAK - ZZV","Volledig pakket thuis","Dagbesteding en vervoer","PGB","Meerzorg","Beheerskosten","Blad1"],"not_rendered":{"charts":0,"images":1,"macros":1,"external_links":5,"defined_names":66,"comments":0,"pivot_tables":0},"unopened":[],"bounds":{"document_bytes":16777216,"sheet_cells":100000,"rows_first":2000,"rows_last":500,"rows_between":2000,"halvings":0,"cell_chars":16384,"cell_head_chars":4096},"cells_cut":0,"cells_raw":0,"read":"whole","date_system":"1900"}

{"sheet":"Hoofdmenu","index":0,"n_rows":16,"n_cols":2,"rows_kept":16,"cut":false,"hidden":false,"merged":[[0,0,0,1],[1,0,1,1]]}
["HOOFDMENU"]
["KWARTAALSTAAT Wlz 2018 4e KWARTAAL - Wlz-REGIO"]
["Navigatie","Afdrukken"]
[]
[" 01. Toelichting"]
[" 02. NAW gegevens"]
[" 03. Mededelingen"]
[" 04. Voorblad"]
[" 05. Kostenverzamelstaat"]
[" 06. Zorg via CAK: Aanvaardbare kosten en Zorg met verblijf"]
[" 07. Zorg via CAK: Zorg zonder verblijf"]
[" 08. Zorg via CAK: Volledig pakket thuis"]
[" 09. Zorg via CAK: Dagbesteding en vervoer"]
[" 10. PGB"]
[" 11. Meerzorg"]
[" 12. Beheerskosten"]

{"sheet":"Toelichting","index":1,"n_rows":0,"n_cols":0,"rows_kept":0,"cut":false,"hidden":false,"merged":[]}

{"sheet":"NAW_gegevens","index":2,"n_rows":45,"n_cols":3,"rows_kept":45,"cut":false,"hidden":false,"merged":[[1,0,1,1],[2,0,2,1]]}
[]
["NAW-MENU"]
["KWARTAALSTAAT Wlz 2018 4e KWARTAAL - Wlz-REGIO"]
[" Uzovi-nummer:"]
[" Naam Wlz-regio:",{"$f":"IF(naw_uzovi_zorgkantoor=\"\",\"\",VLOOKUP(naw_uzovi_zorgkantoor,A13:B45,2))","v":""}]
[" Wlz-uitvoerder:",{"$f":"IF(naw_uzovi_zorgkantoor=\"\",\"\",VLOOKUP(naw_uzovi_zorgkantoor,A13:C45,3))","v":""}]
[" Contactpersoon:"]
[" Telefoonnummer:"]
[" E-mail:"]
[]
["Let op dat u het goede UZOVI-nummer invult, zie onderstaand overzicht:"]
["UZOVI","NAAM Wlz-REGIO","Wlz-UITVOERDER"]
["000A","N.V.T","ASR Wlz-uitvoerder BV"]
["000B","N.V.T","ONVZ Langdurige Zorg BV"]
["5501","GRONINGEN","Stichting Zorgkantoor Menzis"]
["5502","FRIESLAND","Zorgkantoor Friesland BV"]
["5503","DRENTHE","Zilveren Kruis Zorgkantoor NV"]
["5504","ZWOLLE","Zilveren Kruis Zorgkantoor NV"]
["5505","TWENTE","Stichting Zorgkantoor Menzis"]
["5506","APELDOORN, ZUTPHEN EN OMSTREKEN","Zilveren Kruis Zorgkantoor NV"]
["5507","ARNHEM","Stichting Zorgkantoor Menzis"]
["5508","NIJMEGEN","VGZ Zorgkantoor BV"]
["5509","UTRECHT","Zilveren Kruis Zorgkantoor NV"]
["5510","FLEVOLAND","Zilveren Kruis Zorgkantoor NV"]
["5511","'T GOOI","Zilveren Kruis Zorgkantoor NV"]
["5512","NOORD-HOLLAND NOORD","VGZ Zorgkantoor BV"]
["5513","KENNEMERLAND","Zilveren Kruis Zorgkantoor NV"]
["5514","ZAANSTREEK/WATERLAND","Zilveren Kruis Zorgkantoor NV"]
["5515","AMSTERDAM","Zilveren Kruis Zorgkantoor NV"]
["5516","AMSTELLAND EN DE MEERLANDEN","Stichting Wlz-uitvoerder Zorg en Zekerheid"]
["5517","ZUID-HOLLAND NOORD","Stichting Wlz-uitvoerder Zorg en Zekerheid"]
["5518","HAAGLANDEN","CZ Zorgkantoor BV"]
["5519","WESTLAND SCHIELAND DELFLAND","Zorgkantoor DSW BV"]
["5520","MIDDEN-HOLLAND","VGZ Zorgkantoor BV"]
["5521","ROTTERDAM","Zilveren Kruis Zorgkantoor NV"]
["5523","ZUID-HOLLANDSE EILANDEN","CZ Zorgkantoor BV"]
["5524","WAARDENLAND","VGZ Zorgkantoor BV"]
["5525","ZEELAND","CZ Zorgkantoor BV"]
["5526","WEST-BRABANT","CZ Zorgkantoor BV"]
["5527","MIDDEN-BRABANT","VGZ Zorgkantoor BV"]
["5528","NOORDOOST BRABANT","VGZ Zorgkantoor BV"]
["5529","ZUIDOOST BRABANT","CZ Zorgkantoor BV"]
["5530","NOORD- EN MIDDEN-LIMBURG","VGZ Zorgkantoor BV"]
["5531","ZUID-LIMBURG","CZ Zorgkantoor BV"]
["5532","MIDDEN-IJSSEL","Salland Zorgkantoor BV"]

{"sheet":"Mededelingen","index":3,"n_rows":4,"n_cols":2,"rows_kept":4,"cut":false,"hidden":false,"merged":[]}
[" KWARTAALSTAAT Wlz 2018 4e KWARTAAL - Wlz-REGIO"]
[{"$f":"CONCATENATE(\" UZOVI: \",NAW_gegevens!naw_uzovi_zorgkantoor,\"   Wlz-regio: \",NAW_gegevens!naw_naam_zorgkantoor,\"   Wlz-uitvoerder: \",NAW_gegevens!B6,)","v":" UZOVI:    Wlz-regio:    Wlz-uitvoerder: "}]
[]
[null,"Mededelingen: "]

{"sheet":"Voorblad","index":4,"n_rows":28,"n_cols":3,"rows_kept":28,"cut":false,"hidden":false,"merged":[[10,1,11,9],[14,1,15,9],[16,1,16,9],[17,1,17,9],[12,1,13,9]]}
[]
[]
[]
[]
[]
[]
[]
[]
[]
[]
[null,"KWARTAALSTAAT Wlz 2018"]
[]
[null,"4e KWARTAAL"]
[]
[null,"Wlz-REGIO"]
[]
[]
[]
[]
[null,"● KOSTENVERZAMELSTAAT OPGENOMEN IN KWARTAALSTAAT"]
[null,"● SPECIFICATIES ZORGKOSTEN EN PRODUCTIE, VIA CAK"]
[null,null,"Zorg via CAK: aanvaardbare kosten en zorgzwaartepakketten"]
[null,null,"Zorg via CAK: zorg zonder verblijf"]
[null,null,"Zorg via CAK: volledig pakket thuis"]
[null,null,"Zorg via CAK: dagbesteding en vervoer"]
[null,"● SPECIFICATIE PGB"]
[null,"● SPECIFICATIE MEERZORG"]
[null,"● SPECIFICATIE BEHEERSKOSTEN"]

{"sheet":"Kostenverzamelstaat","index":5,"n_rows":42,"n_cols":3,"rows_kept":42,"cut":false,"hidden":false,"merged":[[5,0,5,1],[41,0,41,1],[4,0,4,1]]}
[" KWARTAALSTAAT Wlz 2018 4e KWARTAAL - Wlz-REGIO"]
[{"$f":"CONCATENATE(\" UZOVI: \",NAW_gegevens!naw_uzovi_zorgkantoor,\"   Wlz-regio: \",NAW_gegevens!naw_naam_zorgkantoor,\"   Wlz-uitvoerder: \",NAW_gegevens!B6,)","v":" UZOVI:    Wlz-regio:    Wlz-uitvoerder: "}]
[]
[]
[" KOSTENVERZAMELSTAAT"]
[" KOSTEN OPGENOMEN IN KWARTAALSTAAT",null,"BEDRAG"]
[" VIA CAK","AANVAARDBARE KOSTEN:"]
[null,"   Aanvaardbare kosten (TOTAAL)",{"$f":"'Zorg via CAK - AK en ZMV'!E7","v":0}]
[null,"REALISATIE ZORG MET VERBLIJF:"]
[null,"   Zorgzwaartepakket verpleging en verzorging inclusief dagbesteding",{"$f":"'Zorg via CAK - AK en ZMV'!E22","v":0}]
[null,"   Zorgzwaartepakket verstandelijk gehandicaptenzorg inclusief dagbesteding",{"$f":"'Zorg via CAK - AK en ZMV'!E35","v":0}]
[null,"   Zorgzwaartepakket verstandelijk gehandicaptenzorg exclusief dagbesteding",{"$f":"'Zorg via CAK - AK en ZMV'!E47","v":0}]
[null,"   Zorgzwaartepakket licht verstandelijk gehandicaptenzorg inclusief dagbesteding",{"$f":"'Zorg via CAK - AK en ZMV'!E56","v":0}]
[null,"   Zorgzwaartepakket sterk gedragsgestoorde licht verstandelijk gehandicaptenzorg inclusief dagbesteding",{"$f":"'Zorg via CAK - AK en ZMV'!E66","v":0}]
[null,"   Zorgzwaartepakket lichamelijk gehandicaptenzorg inclusief dagbesteding",{"$f":"'Zorg via CAK - AK en ZMV'!E77","v":0}]
[null,"   Zorgzwaartepakket lichamelijk gehandicaptenzorg exclusief dagbesteding",{"$f":"'Zorg via CAK - AK en ZMV'!E88","v":0}]
[null,"   Zorgzwaartepakket auditief en communicatief gehandicaptenzorg inclusief dagbesteding",{"$f":"'Zorg via CAK - AK en ZMV'!E96","v":0}]
[null,"   Zorgzwaartepakket auditief en communicatief gehandicaptenzorg exclusief dagbesteding",{"$f":"'Zorg via CAK - AK en ZMV'!E104","v":0}]
[null,"   Zorgzwaartepakket visueel gehandicaptenzorg inclusief dagbesteding",{"$f":"'Zorg via CAK - AK en ZMV'!E113","v":0}]
[null,"   Zorgzwaartepakket visueel gehandicaptenzorg exclusief dagbesteding",{"$f":"'Zorg via CAK - AK en ZMV'!E127","v":0}]
[null,"   Zorgzwaartepakket geestelijke gezondheidszorg, groep B inclusief dagbesteding",{"$f":"'Zorg via CAK - AK en ZMV'!E139","v":0}]
[null,"   Zorgzwaartepakket geestelijke gezondheidszorg, groep B exclusief dagbesteding",{"$f":"'Zorg via CAK - AK en ZMV'!E150","v":0}]
[null,"REALISATIE ZORG ZONDER VERBLIJF"]
[null,"   Realisatie zorg zonder verblijf (TOTAAL)",{"$f":"'Zorg via CAK - ZZV'!E42","v":0}]
[null,"REALISATIE VOLLEDIG PAKKET THUIS"]
[null,"   ZZP VPT verpleging en verzorging inclusief dagbesteding",{"$f":"'Volledig pakket thuis'!D18","v":0}]
[null,"   ZZP VPT verstandelijk gehandicaptenzorg inclusief dagbesteding",{"$f":"'Volledig pakket thuis'!D31","v":0}]
[null,"   ZZP VPT verstandelijk gehandicaptenzorg exclusief dagbesteding",{"$f":"'Volledig pakket thuis'!D43","v":0}]
[null,"   ZZP VPT licht verstandelijk gehandicaptenzorg inclusief dagbesteding",{"$f":"'Volledig pakket thuis'!D52","v":0}]
[null,"   ZZP VPT sterk gedragsgestoorde licht verstandelijk gehandicaptenzorg inclusief dagbesteding",{"$f":"'Volledig pakket thuis'!D57","v":0}]
[null,"   ZZP VPT lichamelijk gehandicaptenzorg inclusief dagbesteding",{"$f":"'Volledig pakket thuis'!D68","v":0}]
[null,"   ZZP VPT lichamelijk gehandicaptenzorg exclusief dagbesteding",{"$f":"'Volledig pakket thuis'!D79","v":0}]
[null,"   ZZP VPT auditief en communicatief gehandicaptenzorg inclusief dagbesteding",{"$f":"'Volledig pakket thuis'!D87","v":0}]
[null,"   ZZP VPT auditief en communicatief gehandicaptenzorg exclusief dagbesteding",{"$f":"'Volledig pakket thuis'!D95","v":0}]
[null,"   ZZP VPT visueel gehandicaptenzorg inclusief dagbesteding",{"$f":"'Volledig pakket thuis'!D104","v":0}]
[null,"   ZZP VPT visueel gehandicaptenzorg exclusief dagbesteding",{"$f":"'Volledig pakket thuis'!D113","v":0}]
[null,"REALISATIE DAGBESTEDING EN VERVOER"]
[null,"   Dagbesteding, zorg zonder verblijf",{"$f":"'Dagbesteding en vervoer'!C13","v":0}]
[null,"   Vervoer, zorg zonder verblijf",{"$f":"'Dagbesteding en vervoer'!C14","v":0}]
[null,"   Dagbesteding, zorg met verblijf, gehandicaptenzorg",{"$f":"'Dagbesteding en vervoer'!C23","v":0}]
[null,"   Vervoer dagbesteding, intramuraal",{"$f":"'Dagbesteding en vervoer'!C28","v":0}]
[" TOTAAL BEHEERSKOSTEN",null,{"$f":"Beheerskosten!E10","v":0}]

{"sheet":"Zorg via CAK - AK en ZMV","index":6,"n_rows":150,"n_cols":10,"rows_kept":150,"cut":false,"hidden":false,"merged":[[132,0,132,1],[133,0,133,1],[5,8,6,9],[7,8,8,8],[7,9,8,9],[140,3,140,4],[147,0,147,1],[119,3,119,4],[129,3,129,4],[97,3,97,4],[105,2,106,2],[105,3,105,4],[97,0,98,1],[97,2,98,2],[78,2,79,2],[78,3,78,4],[30,0,30,1],[31,0,31,1],[33,0,33,1],[36,0,37,1],[38,0,38,1],[39,0,39,1],[40,0,40,1],[41,0,41,1],[129,2,130,2],[121,0,121,1],[122,0,122,1],[123,0,123,1],[124,0,124,1],[125,0,125,1],[126,0,126,2],[129,0,130,1],[131,0,131,1],[89,3,89,4],[48,2,49,2],[48,3,48,4],[67,2,68,2],[67,3,67,4],[62,0,63,1],[62,2,63,2],[62,3,62,4],[51,0,51,1],[52,0,52,1],[53,0,53,1],[54,0,54,1],[55,0,55,2],[67,0,68,1],[64,0,64,1],[65,0,65,2],[48,0,49,1],[50,0,50,1],[69,0,69,1],[70,0,70,1],[71,0,71,1],[72,0,72,1],[73,0,73,1],[82,0,82,1],[5,0,5,3],[6,0,6,3],[11,0,11,1],[12,0,12,1],[9,3,9,4],[9,2,10,2],[9,0,10,1],[36,2,37,2],[36,3,36,4],[19,0,19,1],[20,0,20,1],[24,0,25,1],[26,0,26,1],[27,0,27,1],[28,0,28,1],[29,0,29,1],[21,0,21,2],[34,0,34,2],[17,0,17,1],[18,0,18,1],[24,2,25,2],[24,3,24,4],[32,0,32,1],[13,0,13,1],[14,0,14,1],[15,0,15,1],[16,0,16,1],[42,0,42,1],[43,0,43,1],[45,0,45,1],[44,0,44,1],[46,0,46,2],[81,0,81,1],[83,0,83,1],[84,0,84,1],[85,0,85,1],[74,0,74,1],[75,0,75,1],[76,0,76,2],[78,0,79,1],[80,0,80,1],[94,0,94,1],[95,0,95,2],[99,0,99,1],[100,0,100,1],[101,0,101,1],[86,0,86,1],[87,0,87,2],[91,0,91,1],[92,0,92,1],[93,0,93,1],[89,0,90,1],[89,2,90,2],[110,0,110,1],[111,0,111,1],[112,0,112,2],[103,0,103,2],[119,0,120,1],[102,0,102,1],[105,0,106,1],[107,0,107,1],[108,0,108,1],[109,0,109,1],[119,2,120,2],[143,0,143,1],[144,0,144,1],[145,0,145,1],[146,0,146,1],[149,0,149,2],[134,0,134,1],[135,0,135,1],[138,0,138,2],[140,0,141,1],[142,0,142,1],[148,0,148,1],[136,0,136,1],[137,0,137,1],[140,2,141,2]]}
[" KWARTAALSTAAT Wlz 2018 4e KWARTAAL - Wlz-REGIO"]
[{"$f":"CONCATENATE(\" UZOVI: \",NAW_gegevens!naw_uzovi_zorgkantoor,\"   Wlz-regio: \",NAW_gegevens!naw_naam_zorgkantoor,\"   Wlz-uitvoerder: \",NAW_gegevens!B6,)","v":" UZOVI:    Wlz-regio:    Wlz-uitvoerder: "}]
[]
[" SPECIFICATIES ZORGKOSTEN EN PRODUCTIE, VIA CAK"]
[" AANVAARDBARE KOSTEN"]
[" AANVAARDBARE KOSTEN, ZORG MET EN ZONDER VERBLIJF",null,null,null,"Bedrag",null,null,null,"BR/REG-18143c\n(actief)"]
[" Totaal aanvaardbare kosten"]
[null,null,null,null,null,null,null,null,"Niet-toegelaten","Toegelaten "]
[" ZORGZWAARTEPAKKET VERPLEGING EN VERZORGING (TOEGELATEN VOOR VERBLIJF OF MET EN ZONDER BEHANDELING)"]
[" VERPLEGING EN VERZORGING, INCLUSIEF DAGBESTEDING",null,"NZa-\ncode","REALISATIE"]
[null,null,null,"AANTAL","BEDRAG"]
[" Beschut wonen met enige begeleiding",null,"1VV",null,null,null,{"$f":"IF(OR(NOT(ISNUMBER(E12)),NOT(ISNUMBER(D12)),E12=0,D12=0),\"\",IF(E12/D12<I12,\"REALISATIE: De gemiddelde kosten zijn lager dan het laagste tarief\",IF(E12/D12>J12,\"REALISATIE: De gemiddelde kosten zijn hoger dan het hoogste tarief\",\"\")))","v":""},null,97.07,97.07]
[" Beschut wonen met begeleiding en verzorging",null,"2VV",null,null,null,"",null,117.46,117.46]
[" Beschut wonen met begeleiding en intensieve verzorging",null,"3VV",null,null,null,"",null,138.72999999999999,166.95]
[" Beschut wonen met intensieve begeleiding en uitgebreide verzorging",null,"4VV",null,null,null,"",null,160.59,190.32]
[" Beschermd wonen met intensieve dementiezorg",null,"5VV",null,null,null,"",null,208.71,241.07]
[" Beschermd wonen met intensieve verzorging en verpleging",null,"6VV",null,null,null,"",null,208.97,242.14]
[" Beschermd wonen met zeer intensieve zorg, vanwege specifieke\n aandoeningen, met nadruk op begeleiding",null,"7VV",null,null,null,"",null,240.88,282.58]
[" Beschermd wonen met zeer intensieve zorg, vanwege specifieke\n aandoeningen, met nadruk op verzorging/verpleging",null,"8VV",null,null,null,"",null,277.06,319.35000000000002]
[" Herstelgerichte verpleging en verzorging",null,"9VVB",null,null,null,"",null,203.99,289.88]
[" Beschermd verblijf met intensieve palliatief-terminale zorg",null,"10VV",null,null,null,"",null,299.43,341.29]
[" TOTAAL VERPLEGING EN VERZORGING, INCLUSIEF DAGBESTEDING",null,null,null,{"$f":"SUM(E12:E21)","v":0}]
[]
[" ZORGZWAARTEPAKKET GEHANDICAPTENZORG (TOEGELATEN VOOR VERBLIJF OF MET EN ZONDER BEHANDELING)"]
[" VERSTANDELIJK GEHANDICAPTEN, INCLUSIEF DAGBESTEDING",null,"NZa-\ncode","REALISATIE"]
[null,null,null,"AANTAL","BEDRAG"]
[" Wonen met enige begeleiding",null,"1VG",null,null,null,"",null,139.97,139.97]
[" Wonen met begeleiding",null,"2VG",null,null,null,"",null,157.91,157.91]
[" Wonen met begeleiding en verzorging",null,"3VG",null,null,null,"",null,173.08,190.95]
[" Wonen met begeleiding en intensieve verzorging",null,"4VG",null,null,null,"",null,187.04,206.67]
[" Wonen met intensieve begeleiding en intensieve verzorging",null,"5VG",null,null,null,"",null,228.02,258.20999999999998]
[" Wonen met intensieve begeleiding, verzorging en gedragsregulering",null,"6VG",null,null,null,"",null,218.56,249.59]
[" (Besloten) wonen met zeer intensieve begeleiding, verzorging en \n gedragsregulering",null,"7VG",null,null,null,"",null,295.54000000000002,331.98]
[" Wonen met begeleiding en volledige verzorging en verpleging",null,"8VG",null,null,null,"",null,264.92,295.08]
[" TOTAAL VERSTANDELIJK GEHANDICAPTEN, INCLUSIEF DAGBESTEDING",null,null,null,{"$f":"SUM(E27:E34)","v":0}]
[]
[" VERSTANDELIJK GEHANDICAPTEN, EXCLUSIEF DAGBESTEDING",null,"NZa-\ncode","REALISATIE"]
[null,null,null,"AANTAL","BEDRAG"]
[" Wonen met enige begeleiding",null,"1VG",null,null,null,"",null,94.6,94.6]
[" Wonen met begeleiding",null,"2VG",null,null,null,"",null,112.52,112.52]
[" Wonen met begeleiding en verzorging",null,"3VG",null,null,null,"",null,127.71,145.55000000000001]
[" Wonen met begeleiding en intensieve verzorging",null,"4VG",null,null,null,"",null,141.63999999999999,161.26]
[" Wonen met intensieve begeleiding en intensieve verzorging",null,"5VG",null,null,null,"",null,167.72,197.89]
[" Wonen met intensieve begeleiding, verzorging en gedragsregulering",null,"6VG",null,null,null,"",null,158.32,189.34]
[" (Besloten) wonen met zeer intensieve begeleiding, verzorging en\n gedragsregulering",null,"7VG",null,null,null,"",null,200.17,236.61]
["Wonen met begeleiding en volledige verzorging en verpleging",null,"8VG",null,null,null,"",null,202.77,232.94]
[" TOTAAL VERSTANDELIJK GEHANDICAPTEN, EXCLUSIEF DAGBESTEDING",null,null,null,{"$f":"SUM(E39:E46)","v":0}]
[]
[" LICHT VERSTANDELIJK GEHANDICAPTEN, INCL. DAGBESTEDING",null,"NZa-\ncode","REALISATIE"]
[null,null,null,"AANTAL","BEDRAG"]
[" Wonen met enige behandeling en begeleiding",null,"1LVG",null,null,null,"",null,181.78,181.78]
[" Wonen met behandeling en begeleiding",null,"2LVG",null,null,null,"",null,224.24,224.24]
[" Wonen met intensieve behandeling en begeleiding, kleine groep",null,"3LVG",null,null,null,"",null,281.04000000000002,281.04000000000002]
[" Wonen met zeer intensieve behandeling en begeleiding",null,"4LVG",null,null,null,"",null,322.29000000000002,322.29000000000002]
[" Besloten wonen met zeer intensieve behandeling en begeleiding",null,"5LVG",null,null,null,"",null,321.02999999999997,321.02999999999997]
[" TOTAAL LICHT VERSTANDELIJK GEHANDICAPTEN, INCLUSIEF DAGBESTEDING",null,null,null,{"$f":"SUM(E51:E55)","v":0}]
[]
[" KWARTAALSTAAT Wlz 2018 4e KWARTAAL - Wlz-REGIO"]
[{"$f":"CONCATENATE(\" UZOVI: \",NAW_gegevens!naw_uzovi_zorgkantoor,\"   Wlz-regio: \",NAW_gegevens!naw_naam_zorgkantoor,\"   Wlz-uitvoerder: \",NAW_gegevens!B6,)","v":" UZOVI:    Wlz-regio:    Wlz-uitvoerder: "}]
[]
[" SPECIFICATIES ZORGKOSTEN EN PRODUCTIE, VIA CAK"]
[" ZORGZWAARTEPAKKET GEHANDICAPTENZORG (TOEGELATEN VOOR VERBLIJF OF MET EN ZONDER BEHANDELING)"]
[" STERK GEDRAGSGESTOORDE LICHT VERSTANDELIJK GEHANDICAPTEN, \n INCLUSIEF DAGBESTEDING",null,"NZa-\ncode","REALISATIE"]
[null,null,null,"AANTAL","BEDRAG"]
[" Behandeling in een SGLVG behandelcentrum",null,"1SGLVG",null,null,null,"",null,405.94,405.94]
[" TOTAAL STERK GEDRAGSGESTOORDE LICHT VERSTANDELIJK \n GEHANDICAPTEN, INCLUSIEF DAGBESTEDING",null,null,null,{"$f":"SUM(E65)","v":0}]
[]
[" LICHAMELIJK GEHANDICAPTEN, INCLUSIEF DAGBESTEDING",null,"NZa-\ncode","REALISATIE"]
[null,null,null,"AANTAL","BEDRAG"]
[" Wonen met enige begeleiding en enige verzorging",null,"1LG",null,null,null,{"$f":"IF(OR(NOT(ISNUMBER(E70)),NOT(ISNUMBER(D70)),E70=0,D70=0),\"\",IF(E70/D70<I70,\"REALISATIE: De gemiddelde kosten zijn lager dan het laagste tarief\",IF(E70/D70>J70,\"REALISATIE: De gemiddelde kosten zijn hoger dan het hoogste tarief\",\"\")))","v":""},null,173.8,173.8]
[" Wonen met begeleiding en enige verzorging",null,"2LG",null,null,null,"",null,200.46,200.46]
[" Wonen met enige begeleiding en verzorging",null,"3LG",null,null,null,"",null,189.18,223.13]
[" Wonen met begeleiding en verzorging",null,"4LG",null,null,null,"",null,202.4,236.87]
[" Wonen met begeleiding en intensieve verzorging",null,"5LG",null,null,null,"",null,233.89,278.64]
[" Wonen met intensieve begeleiding en intensieve verzorging",null,"6LG",null,null,null,"",null,251.37,301.58999999999997]
[" Wonen met zeer intensieve begeleiding en zeer intensieve verzorging",null,"7LG",null,null,null,{"$f":"IF(OR(NOT(ISNUMBER(E76)),NOT(ISNUMBER(D76)),E76=0,D76=0),\"\",IF(E76/D76<I76,\"REALISATIE: De gemiddelde kosten zijn lager dan het laagste tarief\",IF(E76/D76>J76,\"REALISATIE: De gemiddelde kosten zijn hoger dan het hoogste tarief\",\"\")))","v":""},null,264,310.58]
[" TOTAAL LICHAMELIJK GEHANDICAPTEN, INCLUSIEF DAGBESTEDING",null,null,null,{"$f":"SUM(E70:E76)","v":0}]
[]
[" LICHAMELIJK GEHANDICAPTEN, EXCLUSIEF DAGBESTEDING",null,"NZa-\ncode","REALISATIE"]
[null,null,null,"AANTAL","BEDRAG"]
[" Wonen met enige begeleiding en enige verzorging",null,"1LG",null,null,null,"",null,119.28,119.28]
[" Wonen met begeleiding en enige verzorging",null,"2LG",null,null,null,"",null,150.03,150.03]
[" Wonen met enige begeleiding en verzorging",null,"3LG",null,null,null,"",null,134.66,168.6]
[" Wonen met begeleiding en verzorging",null,"4LG",null,null,null,"",null,151.99,186.45]
[" Wonen met begeleiding en intensieve verzorging",null,"5LG",null,null,null,"",null,178.59,223.35]
[" Wonen met intensieve begeleiding en intensieve verzorging",null,"6LG",null,null,null,"",null,198.33,248.59]
[" Wonen met zeer intensieve begeleiding en zeer intensieve verzorging",null,"7LG",null,null,null,"",null,217.66,264.26]
[" TOTAAL LICHAMELIJK GEHANDICAPTEN, EXCLUSIEF DAGBESTEDING",null,null,null,{"$f":"SUM(E81:E87)","v":0}]
[]
[" AUDITIEF EN COMMUNICATIEF GEHANDICAPTEN, INCLUSIEF \n DAGBESTEDING",null,"NZa-\ncode","REALISATIE"]
[null,null,null,"AANTAL","BEDRAG"]
[" Wonen met begeleiding en enige verzorging",null,"1ZGAUD",null,null,null,"",null,199.96,221.32]
[" Wonen met intensieve begeleiding en verzorging",null,"2ZGAUD",null,null,null,"",null,321.85000000000002,355.01]
[" Wonen met intensieve begeleiding en intensieve verzorging",null,"3ZGAUD",null,null,null,"",null,367.97,405.12]
[" Wonen met intensieve begeleiding en enige verzorging",null,"4ZGAUD",null,null,null,"",null,252.07,285.22000000000003]
[" TOTAAL AUDITIEF EN COMMUNICATIEF GEHANDICAPTEN, INCLUSIEF \n DAGBESTEDING",null,null,null,{"$f":"SUM(E92:E95)","v":0}]
[]
[" AUDITIEF EN COMMUNICATIEF GEHANDICAPTEN, EXCLUSIEF \n DAGBESTEDING",null,"NZa-\ncode","REALISATIE"]
[null,null,null,"AANTAL","BEDRAG"]
[" Wonen met begeleiding en enige verzorging",null,"1ZGAUD",null,null,null,"",null,139.80000000000001,161.12]
[" Wonen met intensieve begeleiding en verzorging",null,"2ZGAUD",null,null,null,"",null,247.13,280.23]
[" Wonen met intensieve begeleiding en intensieve verzorging",null,"3ZGAUD",null,null,null,"",null,282.11,319.24]
[" Wonen met intensieve begeleiding en enige verzorging",null,"4ZGAUD",null,null,null,"",null,191.9,225.04]
[" TOTAAL AUDITIEF EN COMMUNICATIEF GEHANDICAPTEN, EXCLUSIEF \n DAGBESTEDING",null,null,null,{"$f":"SUM(E100:E103)","v":0}]
[]
[" VISUEEL GEHANDICAPTEN, INCLUSIEF DAGBESTEDING",null,"NZa-\ncode","REALISATIE"]
[null,null,null,"AANTAL","BEDRAG"]
[" Wonen met enige begeleiding en enige verzorging",null,"1ZGVIS",null,null,null,"",null,154.44,154.44]
[" Wonen met begeleiding en enige verzorging",null,"2ZGVIS",null,null,null,"",null,183.67,183.67]
[" Wonen met intensieve begeleiding en verzorging",null,"3ZGVIS",null,null,null,"",null,208.62,232.35]
[" Wonen met intensieve begeleiding en intensieve verzorging",null,"4ZGVIS",null,null,null,"",null,259.72000000000003,291.33999999999997]
[" Wonen met zeer intensieve begeleiding en zeer intensieve verzorging",null,"5ZGVIS",null,null,null,"",null,283.86,319.86]
[" TOTAAL VISUEEL GEHANDICAPTEN, INCLUSIEF DAGBESTEDING",null,null,null,{"$f":"SUM(E108:E112)","v":0}]
[]
[" KWARTAALSTAAT Wlz 2018 4e KWARTAAL - Wlz-REGIO"]
[{"$f":"CONCATENATE(\" UZOVI: \",NAW_gegevens!naw_uzovi_zorgkantoor,\"   Wlz-regio: \",NAW_gegevens!naw_naam_zorgkantoor,\"   Wlz-uitvoerder: \",NAW_gegevens!B6,)","v":" UZOVI:    Wlz-regio:    Wlz-uitvoerder: "}]
[]
[" SPECIFICATIES ZORGKOSTEN EN PRODUCTIE, VIA CAK"]
[" ZORGZWAARTEPAKKET GEHANDICAPTENZORG (TOEGELATEN VOOR VERBLIJF OF MET EN ZONDER BEHANDELING)"]
[" VISUEEL GEHANDICAPTEN, EXCLUSIEF DAGBESTEDING",null,"NZa-\ncode","REALISATIE"]
[null,null,null,"AANTAL","BEDRAG"]
[" Wonen met enige begeleiding en enige verzorging",null,"1ZGVIS",null,null,null,"",null,102.87,102.87]
[" Wonen met begeleiding en enige verzorging",null,"2ZGVIS",null,null,null,"",null,139.28,139.28]
[" Wonen met intensieve begeleiding en verzorging",null,"3ZGVIS",null,null,null,"",null,164.21,187.94]
[" Wonen met intensieve begeleiding en intensieve verzorging",null,"4ZGVIS",null,null,null,"",null,201.37,233]
[" Wonen met zeer intensieve begeleiding en zeer intensieve verzorging",null,"5ZGVIS",null,null,null,"",null,223.7,259.7]
[" TOTAAL VISUEEL GEHANDICAPTEN, EXCLUSIEF DAGBESTEDING",null,null,null,{"$f":"SUM(E122:E126)","v":0}]
[]
[" ZORGZWAARTEPAKKET GEESTELIJKE GEZONDHEIDSZORG (VOOR CLIËNTEN DIE VERBLIJVEN VANWEGE BEHANDELING OF BEGELEIDING)"]
[" GGZ B-GROEP, INCLUSIEF DAGBESTEDING",null,"NZa-\ncode","REALISATIE"]
[null,null,null,"AANTAL","BEDRAG"]
[" Voortgezet verblijf met begeleiding",null,"1BGGZ",null,null,null,"",null,136.16999999999999,136.16999999999999]
[" Voortgezet verblijf met structuur en uitgebreide begeleiding",null,"2BGGZ",null,null,null,"",null,172.36,172.36]
[" Voortgezet verblijf met intensieve begeleiding",null,"3BGGZ",null,null,null,"",null,194.73,194.73]
[" Voortgezet verblijf met intensieve begeleiding en verzorging",null,"4BGGZ",null,null,null,"",null,215.95,215.95]
[" Voortgezet verblijf met intensieve begeleiding en gedragsregulering",null,"5BGGZ",null,null,null,"",null,238.16,238.16]
[" Voortgezet verblijf met intensieve begeleiding en intensieve \n verpleging en verzorging",null,"6BGGZ",null,null,null,"",null,291.76,291.76]
[" Beveiligd voortgezet verblijf vanwege extreme gedragsproblematiek \n met zeer intensieve begeleiding",null,"7BGGZ",null,null,null,"",null,390.79,390.79]
[" TOTAAL GGZ B-groep, INCLUSIEF DAGBESTEDING",null,null,null,{"$f":"SUM(E132:E138)","v":0}]
[]
[" GGZ B-GROEP, EXCLUSIEF DAGBESTEDING",null,"NZa-\ncode","REALISATIE"]
[null,null,null,"AANTAL","BEDRAG"]
[" Voortgezet verblijf met begeleiding",null,"1BGGZ",null,null,null,{"$f":"IF(OR(NOT(ISNUMBER(E143)),NOT(ISNUMBER(D143)),E143=0,D143=0),\"\",IF(E143/D143<I143,\"REALISATIE: De gemiddelde kosten zijn lager dan het laagste tarief\",IF(E143/D143>J143,\"REALISATIE: De gemiddelde kosten zijn hoger dan het hoogste tarief\",\"\")))","v":""},null,100.86,100.86]
[" Voortgezet verblijf met structuur en uitgebreide begeleiding",null,"2BGGZ",null,null,null,"",null,139.22999999999999,139.22999999999999]
[" Voortgezet verblijf met intensieve begeleiding",null,"3BGGZ",null,null,null,"",null,158.88,158.88]
[" Voortgezet verblijf met intensieve begeleiding en verzorging",null,"4BGGZ",null,null,null,"",null,178.72,178.72]
[" Voortgezet verblijf met intensieve begeleiding en gedragsregulering",null,"5BGGZ",null,null,null,"",null,199.36,199.36]
[" Voortgezet verblijf met intensieve begeleiding en intensieve \n verpleging en verzorging",null,"6BGGZ",null,null,null,"",null,254.19,254.19]
[" Beveiligd voortgezet verblijf vanwege extreme gedragsproblematiek \n met zeer intensieve begeleiding",null,"7BGGZ",null,null,null,"",null,331.69,331.69]
[" TOTAAL GGZ B-groep, EXCLUSIEF DAGBESTEDING",null,null,null,{"$f":"SUM(E143:E149)","v":0}]

{"sheet":"Zorg via CAK - ZZV","index":7,"n_rows":42,"n_cols":10,"rows_kept":42,"cut":false,"hidden":false,"merged":[[41,0,41,2],[5,3,5,4],[8,0,12,0],[39,0,40,0],[5,8,6,9],[13,0,16,0],[17,0,27,0],[28,0,38,0],[5,2,6,2],[5,0,6,0],[5,1,6,1]]}
[" KWARTAALSTAAT Wlz 2018 4e KWARTAAL - Wlz-REGIO"]
[{"$f":"CONCATENATE(\" UZOVI: \",NAW_gegevens!naw_uzovi_zorgkantoor,\"   Wlz-regio: \",NAW_gegevens!naw_naam_zorgkantoor,\"   Wlz-uitvoerder: \",NAW_gegevens!$B$6,)","v":" UZOVI:    Wlz-regio:    Wlz-uitvoerder: "}]
[]
[" SPECIFICATIES ZORGKOSTEN EN PRODUCTIE, VIA CAK"]
[" ZORG ZONDER VERBLIJF, VERPLEGING EN VERZORGING, GEHANDICAPTENZORG, GEESTELIJKE GEZONDHEIDSZORG"]
[" CATEGORIE"," SUB-CATEGORIE","NZa-\ncode","REALISATIE",null,null,null,null,"BR/REG-18141b (actief)"]
[null,null,null,"AANTAL","BEDRAG"]
[" Huishoudelijke hulp"," Huishoudelijke hulp","H117",null,null,null,{"$f":"IF(OR((D8=\"\"),(E8=\"\")),\"\",IF(OR(E8=0,(E8*D8)<10),\"\",IF(ABS((E8/D8)/J8*100-100)>10,CONCATENATE(\"REALISATIE: Kosten (bedrag per uur) wijken \",ROUND(((E8/D8)/J8)*100-100,2),\"% af van het NZa-tarief.\"),\"\")))","v":""},null,"H117",31.09]
[" PV"," Persoonlijke verzorging","H126",null,null,null,{"$f":"IF(OR((D9=\"\"),(E9=\"\")),\"\",IF(OR(E9=0,(E9*D9)<10),\"\",IF(ABS((E9/D9)/J9*100-100)>10,CONCATENATE(\"REALISATIE: Kosten (bedrag per uur) wijken \",ROUND(((E9/D9)/J9)*100-100,2),\"% af van het NZa-tarief.\"),\"\")))","v":""},null,"H126",53.97]
["PV"," Persoonlijke verzorging extra","H127",null,null,null,"",null,"H127",57.81]
["PV"," Persoonlijke verzorging speciaal","H120",null,null,null,"",null,"H120",80.64]
[null," Persoonlijke verzorging farmaceutische telezorg","H137",null,null,null,"",null,"H137",53.97]
[null," Persoonlijke verzorging zorg op afstand aanvullend","H136",null,null,null,"",null,"H136",53.97]
[" VP"," Verpleging","H104",null,null,null,"",null,"H104",79.900000000000006]
["VP"," Verpleging extra","H128",null,null,null,"",null,"H128",85.58]
["VP"," Gespecialiceerde verpleging","H106",null,null,null,"",null,"H106",86.51]
[null," Verpleging zorg op afstand aanvullend","H107",null,null,null,"",null,"H107",79.900000000000006]
[" Begeleiding"," Begeleiding","H300",null,null,null,"",null,"H300",58.18]
["Begeleiding"," Begeleiding extra","H150",null,null,null,"",null,"H150",62.32]
["Begeleiding"," Begeleiding speciaal 1 (nah)","H152",null,null,null,"",null,"H152",94.58]
["Begeleiding"," Gespecialiseerde begeleiding (psy)","H153",null,null,null,"",null,"H153",101.11]
["Begeleiding"," Begeleiding zg visueel","H301",null,null,null,"",null,"H301",105.23]
["Begeleiding"," Begeleiding zg auditief","H303",null,null,null,"",null,"H303",87.87]
["Begeleiding"," Begeleiding speciaal 2 (zg) visueel","H302",null,null,null,"",null,"H302",129.34]
["Begeleiding"," Begeleiding speciaal 2 (zg) auditief","H304",null,null,null,"",null,"H304",112.01]
["Begeleiding"," Nachtverzorging","H132",null,null,null,"",null,"H132",49.8]
["Begeleiding"," Nachtverpleging","H180",null,null,null,"",null,"H180",93.25]
[null," Begeleiding zorg op afstand aanvullend","H305",null,null,null,"",null,"H305",58.18]
[" Behandeling"," Behandeling som, pg, vg, lg, zg (SO)","H335",null,null,null,"",null,"H335",122.79]
[null," Behandeling som, pg, vg, lg, zg (AVG)","H336",null,null,null,"",null,"H336",122.79]
["BH"," Behandeling gedragswetenschapper","H329",null,null,null,"",null,"H329",122.79]
["BH"," Behandeling paramedisch","H330",null,null,null,"",null,"H330",65.260000000000005]
[null," Behandeling IOG (j)lvg","H334",null,null,null,"",null,"H334",111.05]
["BH"," Behandeling basis jlvg","H325",null,null,null,"",null,"H325",122.79]
["BH"," Behandeling basis sglvg-traject","H326",null,null,null,"",null,"H326",122.79]
["BH"," Behandeling basis sglvg deeltijd","H327",null,null,null,"",null,"H327",122.79]
["BH"," Behandeling Families First (j)lvg","H331",null,null,null,"",null,"H331",127.79]
["BH"," Behandeling visueel","H332",null,null,null,"",null,"H332",139.22]
["BH"," Behandeling auditief","H333",null,null,null,"",null,"H333",123.49]
[" Reiskosten"," Reiskosten prestaties behandeling (H325 t/m H331 \n en H334 t/m H336)","H321",null,null,null,"",null,"H321",28.38]
[null," Reiskosten prestaties behandeling (H332 en H333)","H337",null,null,null,"",null,"H337",23.4]
[" TOTAAL ZORG ZONDER VERBLIJF",null,null,null,{"$f":"SUM(E8:E41)","v":0}]

{"sheet":"Volledig pakket thuis","index":8,"n_rows":113,"n_cols":9,"rows_kept":113,"cut":false,"hidden":false,"merged":[[112,0,112,1],[105,7,105,8],[103,0,103,1],[105,0,106,0],[105,1,106,1],[105,2,105,3],[94,0,94,1],[96,0,97,0],[96,1,97,1],[96,2,96,3],[96,7,96,8],[86,0,86,1],[88,0,89,0],[88,1,89,1],[88,2,88,3],[88,7,88,8],[67,0,67,1],[80,0,81,0],[80,1,81,1],[80,2,80,3],[80,7,80,8],[69,0,70,0],[69,1,70,1],[69,2,69,3],[69,7,69,8],[78,0,78,1],[58,0,59,0],[58,1,59,1],[58,2,58,3],[58,7,58,8],[53,0,54,0],[53,1,54,1],[53,2,53,3],[53,7,53,8],[56,0,56,1],[44,0,45,0],[44,1,45,1],[44,2,44,3],[44,7,44,8],[51,0,51,1],[5,1,6,1],[5,2,5,3],[5,7,5,8],[5,0,6,0],[17,0,17,1],[20,0,21,0],[20,1,21,1],[20,2,20,3],[20,7,20,8],[30,0,30,1],[32,0,33,0],[32,1,33,1],[32,2,32,3],[32,7,32,8],[42,0,42,1]]}
[" KWARTAALSTAAT Wlz 2018 4e KWARTAAL - Wlz-REGIO"]
[{"$f":"CONCATENATE(\" UZOVI: \",NAW_gegevens!naw_uzovi_zorgkantoor,\"   Wlz-regio: \",NAW_gegevens!naw_naam_zorgkantoor,\"   Wlz-uitvoerder: \",NAW_gegevens!$B$6,)","v":" UZOVI:    Wlz-regio:    Wlz-uitvoerder: "}]
[]
[" SPECIFICATIES ZORGKOSTEN EN PRODUCTIE, VIA CAK"]
[" ZORGZWAARTEPAKKET VOLLEDIG PAKKET THUIS VERPLEGING EN VERZORGING"]
[" ZZP VPT VERPLEGING EN VERZORGING, INCLUSIEF DAGBESTEDING","NZA- code","REALISATIE",null,null,null,null,"BR/REG-18142b (actief)"]
[null,null,"AANTAL","BEDRAG",null,null,null,"Niet toegelaten","Toegelaten"]
[" Beschut wonen met enige begeleiding","1VV",null,null,null,{"$f":"IF(OR(NOT(ISNUMBER(C8)),NOT(ISNUMBER(D8)),C8=0,D8=0),\"\",IF(D8/C8<H8,\"REALISATIE: De gemiddelde kosten zijn lager dan het laagste tarief\",IF(D8/C8>I8,\"REALISATIE: De gemiddelde kosten zijn hoger dan het hoogste tarief\",\"\")))","v":""},null,71.599999999999994,71.599999999999994]
[" Beschut wonen met begeleiding en verzorging","2VV",null,null,null,"",null,89.98,89.98]
[" Beschut wonen met begeleiding en intensieve verzorging","3VV",null,null,null,"",null,107.81,128.47]
[" Beschut wonen met intensieve begeleiding en uitgebreide verzorging","4VV",null,null,null,"",null,128.85,150.63]
[" Beschermd wonen met intensieve dementiezorg","5VV",null,null,null,"",null,177.22,200.71]
[" Beschermd wonen met intensieve verzorging en verpleging","6VV",null,null,null,"",null,177.58,201.06]
[" Beschermd wonen met zeer intensieve zorg, vanwege specifieke aandoeningen, met nadruk op begeleiding","7VV",null,null,null,"",null,207.64,239.33]
[" Beschermd wonen met zeer intensieve zorg, vanwege specifieke aandoeningen, met nadruk op verzorging/verpleging","8VV",null,null,null,"",null,240.28,271.91000000000003]
[" Herstelgerichte verpleging en verzorging","9BVV",null,null,null,"",null,172.09,236.68]
[" Beschermd verblijf met intensieve palliatief-terminale zorg","10VV",null,null,null,"",null,262.19,293.92]
[" TOTAAL ZZP VPT VERPLEGING EN VERZORGING, INCLUSIEF DAGBESTEDING",null,null,{"$f":"SUM(D8:D17)","v":0}]
[]
[" ZORGZWAARTEPAKKET VOLLEDIG PAKKET THUIS GEHANDICAPTENZORG"]
[" ZZP VPT VERSTANDELIJK GEHANDICAPTEN, INCLUSIEF DAGBESTEDING","NZA- code","REALISATIE",null,null,null,null,"BR/REG-18142b (actief)"]
[null,null,"AANTAL","BEDRAG",null,null,null,"Niet toegelaten","Toegelaten"]
[" Wonen met enige begeleiding","1VG",null,null,null,"",null,113.25,113.25]
[" Wonen met begeleiding","2VG",null,null,null,"",null,130.31,130.31]
[" Wonen met begeleiding en verzorging","3VG",null,null,null,"",null,144.77000000000001,154.07]
[" Wonen met begeleiding en intensieve verzorging","4VG",null,null,null,"",null,158.04,169.04]
[" Wonen met intensieve begeleiding en intensieve verzorging","5VG",null,null,null,"",null,196.06,212.04]
[" Wonen met intensieve begeleiding, verzorging en gedragsregulering","6VG",null,null,null,"",null,189.07,205.9]
[" (Besloten) wonen met zeer intensieve begeleiding, verzorging en gedragsregulering","7VG",null,null,null,"",null,262.48,284.39]
[" Wonen met begeleiding en volledige verzorging en verpleging","8VG",null,null,null,"",null,224.07,240.01]
[" TOTAAL ZZP VPT VERSTANDELIJK GEHANDICAPTEN, INCLUSIEF DAGBESTEDING",null,null,{"$f":"SUM(D23:D30)","v":0}]
[]
[" ZZP VPT VERSTANDELIJK GEHANDICAPTEN, EXCLUSIEF DAGBESTEDING","NZA- code","REALISATIE",null,null,null,null,"BR/REG-18142b (actief)"]
[null,null,"AANTAL","BEDRAG",null,null,null,"Niet toegelaten","Toegelaten"]
[" Wonen met enige begeleiding","1VG",null,null,null,"",null,67.39,67.39]
[" Wonen met begeleiding","2VG",null,null,null,"",null,84.46,84.46]
[" Wonen met begeleiding en verzorging","3VG",null,null,null,"",null,98.89,108.21]
[" Wonen met begeleiding en intensieve verzorging","4VG",null,null,null,"",null,112.19,123.18]
[" Wonen met intensieve begeleiding en intensieve verzorging","5VG",null,null,null,"",null,135.13999999999999,151.05000000000001]
[" Wonen met intensieve begeleiding, verzorging en gedragsregulering","6VG",null,null,null,"",null,128.15,144.97]
[" (Besloten) wonen met zeer intensieve begeleiding, verzorging en gedragsregulering","7VG",null,null,null,"",null,166.01,187.92]
[" Wonen met begeleiding en volledige verzorging en verpleging","8VG",null,null,null,"",null,161.29,177.23]
[" TOTAAL ZZP VPT VERSTANDELIJK GEHANDICAPTEN, EXCLUSIEF DAGBESTEDING",null,null,{"$f":"SUM(D35:D42)","v":0}]
[]
[" ZZP VPT LICHT VERSTANDELIJK GEHANDICAPTEN, INCL. DAGBESTEDING","NZA- code","REALISATIE",null,null,null,null,"BR/REG-18142b (actief)"]
[null,null,"AANTAL","BEDRAG",null,null,null,"Niet toegelaten","Toegelaten"]
[" Wonen met enige behandeling en begeleiding","1LVG",null,null,null,"",null,135.03,135.03]
[" Wonen met behandeling en begeleiding","2LVG",null,null,null,"",null,175.55,175.55]
[" Wonen met intensieve behandeling en begeleiding, kleine groep","3LVG",null,null,null,"",null,217.66,217.66]
[" Wonen met zeer intensieve behandeling en begeleiding","4LVG",null,null,null,"",null,257.89,257.89]
[" Besloten wonen met zeer intensieve behandeling en begeleiding","5LVG",null,null,null,"",null,256.68,256.68]
[" TOTAAL ZZP VPT LICHT VERSTANDELIJK GEHANDICAPTEN, INCLUSIEF DAGBESTEDING",null,null,{"$f":"SUM(D47:D51)","v":0}]
[]
[" ZZP VPT STERK GEDRAGSGESTOORDE LICHT VERSTANDELIJK GEHANDICAPTEN, INCLUSIEF DAGBESTEDING","NZA- code","REALISATIE",null,null,null,null,"BR/REG-18142b (actief)"]
[null,null,"AANTAL","BEDRAG",null,null,null,"Niet toegelaten","Toegelaten"]
[" Behandeling in een SGLVG behandelcentrum","1SGLVG",null,null,null,"",null,335.85,335.85]
[" TOTAAL ZZP VPT STERK GEDRAGSGESTOORDE LICHT VERSTANDELIJK GEHANDICAPTEN, INCLUSIEF DAGBESTEDING",null,null,{"$f":"SUM(D56)","v":0}]
[]
[" ZZP VPT LICHAMELIJK GEHANDICAPTEN, INCLUSIEF DAGBESTEDING","NZA- code","REALISATIE",null,null,null,null,"BR/REG-18142b (actief)"]
[null,null,"AANTAL","BEDRAG",null,null,null,"Niet toegelaten","Toegelaten"]
[" Wonen met enige begeleiding en enige verzorging","1LG",null,null,null,"",null,145.44,145.44]
[" Wonen met begeleiding en enige verzorging","2LG",null,null,null,"",null,170.55,170.55]
[" Wonen met enige begeleiding en verzorging","3LG",null,null,null,"",null,160.09,184.48]
[" Wonen met begeleiding en verzorging","4LG",null,null,null,"",null,172.42,197.35]
[" Wonen met begeleiding en intensieve verzorging","5LG",null,null,null,"",null,199.6,229.36]
[" Wonen met intensieve begeleiding en intensieve verzorging","6LG",null,null,null,"",null,211.34,246.31]
[" Wonen met zeer intensieve begeleiding en zeer intensieve verzorging","7LG",null,null,null,"",null,222.95,254.46]
[" TOTAAL ZZP VPT LICHAMELIJK GEHANDICAPTEN, INCLUSIEF DAGBESTEDING",null,null,{"$f":"SUM(D61:D67)","v":0}]
[]
[" ZZP VPT LICHAMELIJK GEHANDICAPTEN, EXCLUSIEF DAGBESTEDING","NZA- code","REALISATIE",null,null,null,null,"BR/REG-18142b (actief)"]
[null,null,"AANTAL","BEDRAG",null,null,null,"Niet toegelaten","Toegelaten"]
[" Wonen met enige begeleiding en enige verzorging","1LG",null,null,null,{"$f":"IF(OR(NOT(ISNUMBER(C72)),NOT(ISNUMBER(D72)),C72=0,D72=0),\"\",IF(D72/C72<H72,\"REALISATIE: De gemiddelde kosten zijn lager dan het laagste tarief\",IF(D72/C72>I72,\"REALISATIE: De gemiddelde kosten zijn hoger dan het hoogste tarief\",\"\")))","v":""},null,90.34,90.34]
[" Wonen met begeleiding en enige verzorging","2LG",null,null,null,"",null,119.6,119.6]
[" Wonen met enige begeleiding en verzorging","3LG",null,null,null,"",null,104.96,129.37]
[" Wonen met begeleiding en verzorging","4LG",null,null,null,"",null,121.46,146.38999999999999]
[" Wonen met begeleiding en intensieve verzorging","5LG",null,null,null,"",null,143.69999999999999,173.47]
[" Wonen met intensieve begeleiding en intensieve verzorging","6LG",null,null,null,"",null,157.76,192.71]
[" Wonen met zeer intensieve begeleiding en zeer intensieve verzorging","7LG",null,null,null,"",null,176.16,207.69]
[" TOTAAL ZZP VPT LICHAMELIJK GEHANDICAPTEN, EXCLUSIEF DAGBESTEDING",null,null,{"$f":"SUM(D72:D78)","v":0}]
[]
[" ZZP VPT AUDITIEF EN COMMUNICATIEF GEHANDICAPTEN, INCLUSIEF DAGBESTEDING","NZA- code","REALISATIE",null,null,null,null,"BR/REG-18142b (actief)"]
[null,null,"AANTAL","BEDRAG",null,null,null,"Niet toegelaten","Toegelaten"]
[" Wonen met begeleiding en enige verzorging","1ZGAUD",null,null,null,"",null,167.82,179.05]
[" Wonen met intensieve begeleiding en verzorging","2ZGAUD",null,null,null,"",null,284.76,307.2]
[" Wonen met intensieve begeleiding en intensieve verzorging","3ZGAUD",null,null,null,"",null,330.71,353.17]
[" Wonen met intensieve begeleiding en enige verzorging","4ZGAUD",null,null,null,"",null,217.42,239.86]
[" TOTAAL ZZP VPT AUDITIEF EN COMMUNICATIEF GEHANDICAPTEN, INCLUSIEF DAGBESTEDING",null,null,{"$f":"SUM(D83:D86)","v":0}]
[]
[" ZZP VPT AUDITIEF EN COMMUNICATIEF GEHANDICAPTEN, EXCLUSIEF DAGBESTEDING","NZA- code","REALISATIE",null,null,null,null,"BR/REG-18142b (actief)"]
[null,null,"AANTAL","BEDRAG",null,null,null,"Niet toegelaten","Toegelaten"]
[" Wonen met begeleiding en enige verzorging","1ZGAUD",null,null,null,"",null,106.98,118.2]
[" Wonen met intensieve begeleiding en verzorging","2ZGAUD",null,null,null,"",null,209.16,231.62]
[" Wonen met intensieve begeleiding en intensieve verzorging","3ZGAUD",null,null,null,"",null,243.87,266.31]
[" Wonen met intensieve begeleiding en enige verzorging","4ZGAUD",null,null,null,"",null,156.59,179.04]
[" TOTAAL ZZP VPT AUDITIEF EN COMMUNICATIEF GEHANDICAPTEN, EXCLUSIEF DAGBESTEDING",null,null,{"$f":"SUM(D91:D94)","v":0}]
[]
[" ZZP VPT VISUEEL GEHANDICAPTEN, INCLUSIEF DAGBESTEDING","NZA- code","REALISATIE",null,null,null,null,"BR/REG-18142b (actief)"]
[null,null,"AANTAL","BEDRAG",null,null,null,"Niet toegelaten","Toegelaten"]
[" Wonen met enige begeleiding en enige verzorging","1ZGVIS",null,null,null,"",null,123.93,123.93]
[" Wonen met begeleiding en enige verzorging","2ZGVIS",null,null,null,"",null,151.33000000000001,151.33000000000001]
[" Wonen met intensieve begeleiding en verzorging","3ZGVIS",null,null,null,"",null,175.09,188.57]
[" Wonen met intensieve begeleiding en intensieve verzorging","4ZGVIS",null,null,null,"",null,224.13,241.35]
[" Wonen met zeer intensieve begeleiding en zeer intensieve verzorging","5ZGVIS",null,null,null,"",null,242.4,263.76]
[" TOTAAL ZZP VPT VISUEEL GEHANDICAPTEN, INCLUSIEF DAGBESTEDING",null,null,{"$f":"SUM(D99:D103)","v":0}]
[]
[" ZZP VPT VISUEEL GEHANDICAPTEN, EXCLUSIEF DAGBESTEDING","NZA- code","REALISATIE",null,null,null,null,"BR/REG-18142b (actief)"]
[null,null,"AANTAL","BEDRAG",null,null,null,"Niet toegelaten","Toegelaten"]
[" Wonen met enige begeleiding en enige verzorging","1ZGVIS",null,null,null,"",null,71.83,71.83]
[" Wonen met begeleiding en enige verzorging","2ZGVIS",null,null,null,"",null,106.49,106.49]
[" Wonen met intensieve begeleiding en verzorging","3ZGVIS",null,null,null,"",null,130.26,143.71]
[" Wonen met intensieve begeleiding en intensieve verzorging","4ZGVIS",null,null,null,"",null,165.21,182.42]
[" Wonen met zeer intensieve begeleiding en zeer intensieve verzorging","5ZGVIS",null,null,null,"",null,181.64,202.99]
[" TOTAAL ZZP VPT VISUEEL GEHANDICAPTEN, EXCLUSIEF DAGBESTEDING",null,null,{"$f":"SUM(D108:D112)","v":0}]

{"sheet":"Dagbesteding en vervoer","index":9,"n_rows":28,"n_cols":8,"rows_kept":28,"cut":false,"hidden":false,"merged":[[5,0,6,0],[16,0,17,0],[25,0,26,0],[5,6,5,7],[16,6,16,7],[25,1,25,2],[5,1,5,2],[16,1,16,2]]}
[" KWARTAALSTAAT Wlz 2018 4e KWARTAAL - Wlz-REGIO"]
[{"$f":"CONCATENATE(\" UZOVI: \",NAW_gegevens!naw_uzovi_zorgkantoor,\"   Wlz-regio: \",NAW_gegevens!naw_naam_zorgkantoor,\"   Wlz-uitvoerder: \",NAW_gegevens!$B$6,)","v":" UZOVI:    Wlz-regio:    Wlz-uitvoerder: "}]
[]
[" SPECIFICATIES ZORGKOSTEN EN PRODUCTIE, VIA CAK"]
[" ZORG ZONDER VERBLIJF, DAGBESTEDING"]
[" CATEGORIE","REALISATIE",null,null,null,null,"BR/REG-18141b (actief)"]
[null,"AANTAL","BEDRAG",null,null,null,"Laagste tarief","Hoogste tarief"]
[" Dagbesteding extramuraal Ouderen (TOTAAL)",null,null,null,{"$f":"IF(OR(NOT(ISNUMBER(C8)),NOT(ISNUMBER(B8)),C8=0,B8=0),\"\",IF(C8/B8<G8,\"REALISATIE: De gemiddelde kosten zijn lager dan het laagste tarief\",IF(C8/B8>H8,\"REALISATIE: De gemiddelde kosten zijn hoger dan het hoogste tarief\",\"\")))","v":""},null,37.93,70.260000000000005]
[" Dagbesteding extramuraal VG (TOTAAL)",null,null,null,"",null,40.49,170.88]
[" Dagbesteding extramuraal LG (TOTAAL)",null,null,null,"",null,51.7,102.88]
[" Dagbesteding extramuraal ZG auditief (TOTAAL)",null,null,null,"",null,52.73,116.32]
[" Dagbesteding extramuraal ZG visueel (TOTAAL)",null,null,null,"",null,40.299999999999997,94.62]
[" TOTAAL ZORG ZONDER VERBLIJF, DAGBESTEDING",null,{"$f":"SUM(C8:C12)","v":0}]
[" Vervoer dagbesteding zonder verblijf (TOTAAL)",null,null,null,"",null,7.17,20.420000000000002]
[]
[" ZORG MET VERBLIJF, GEHANDICAPTENZORG, DAGBESTEDING"]
[" CATEGORIE","REALISATIE",null,null,null,null,"BR/REG-18143c (actief)"]
[null,"AANTAL","BEDRAG",null,null,null,"Laagste tarief","Hoogste tarief"]
[" Dagbesteding VG (TOTAAL)",null,null,null,"",null,35.31,83.83]
[" Dagbesteding LG (TOTAAL)",null,null,null,"",null,38.380000000000003,56.55]
[" Dagbesteding ZG auditief (TOTAAL)",null,null,null,"",null,38.380000000000003,66.8]
[" Dagbesteding ZG visueel (TOTAAL)",null,null,null,"",null,34.54,56.55]
[" TOTAAL ZORG MET VERBLIJF, GEHANDICAPTENZORG, DAGBESTEDING",null,{"$f":"SUM(C19:C22)","v":0}]
[]
[" ZORG MET VERBLIJF, VERVOER"]
[" CATEGORIE","REALISATIE"]
[null,"AANTAL","BEDRAG"]
[" Vervoer dagbesteding met verblijf gehandicaptenzorg (TOTAAL)",null,null,null,"",null,6.98,20.420000000000002]

{"sheet":"PGB","index":10,"n_rows":120,"n_cols":4,"rows_kept":120,"cut":false,"hidden":false,"merged":[[4,0,4,2]]}
[" KWARTAALSTAAT Wlz 2018 4e KWARTAAL - Wlz-REGIO"]
[{"$f":"CONCATENATE(\" UZOVI: \",NAW_gegevens!naw_uzovi_zorgkantoor,\"   Wlz-regio: \",NAW_gegevens!naw_naam_zorgkantoor,\"   Wlz-uitvoerder: \",NAW_gegevens!$B$6,)","v":" UZOVI:    Wlz-regio:    Wlz-uitvoerder: "}]
[]
[]
[" SPECIFICATIE VAN HET TOTAAL AANTAL PGB-AANVRAGERS MET BEWUSTE-KEUZE \n GESPREK(KEN) 2018"]
[null,null,"AANTAL"]
["Totaal aantal nieuwe PGB-aanvragers met bewuste-keuze gesprek(ken)"]
[]
[]
[]
[]
[]
[]
[]
[]
[]
[]
[]
[]
[]
[]
[]
[]
[]
[]
[]
[]
[]
[]
[]
[]
[]
[]
[]
[]
[]
[]
[]
[]
[]
[]
[]
[]
[]
[]
[]
[]
[]
[]
[]
[]
[]
[]
[]
[]
[]
[]
[]
[]
[]
[]
[]
[]
[]
[]
[]
[]
[]
[null,null,null,"BR/REG-18143c (actief)"]
[]
[]
[]
[]
[]
[]
[]
[]
[]
[]
[]
[]
[]
[]
[]
[]
[null,null,null,"BR/REG-18143c (actief)"]
[]
[]
[]
[]
[]
[]
[]
[]
[]
[]
[]
[]
[]
[]
[]
[]
[null,null,null,"BR/REG-18143c (actief)"]
[]
[]
[]
[]
[]
[]
[]
[]
[]
[]
[]
[]
[]
[]
[]
[]
[null,null,null,"BR/REG-18143c (actief)"]

{"sheet":"Meerzorg","index":11,"n_rows":122,"n_cols":4,"rows_kept":122,"cut":false,"hidden":false,"merged":[[9,0,9,1],[5,0,5,1],[6,0,6,1],[8,0,8,1]]}
[" KWARTAALSTAAT Wlz 2018 4e KWARTAAL - Wlz-REGIO"]
[{"$f":"CONCATENATE(\" UZOVI: \",NAW_gegevens!naw_uzovi_zorgkantoor,\"   Wlz-regio: \",NAW_gegevens!naw_naam_zorgkantoor,\"   Wlz-uitvoerder: \",NAW_gegevens!$B$6,)","v":" UZOVI:    Wlz-regio:    Wlz-uitvoerder: "}]
[]
[]
[" SPECIFICATIE MEERZORG"]
[null,null,"AANTAL"]
[" Aantal cliënten Meerzorgregeling PGB 2018"]
[]
[null,null,"AANTAL"]
[" Aantal cliënten Meerzorgregeling ZIN/MPT 2018"]
[]
[]
[]
[]
[]
[]
[]
[]
[]
[]
[]
[]
[]
[]
[]
[]
[]
[]
[]
[]
[]
[]
[]
[]
[]
[]
[]
[]
[]
[]
[]
[]
[]
[]
[]
[]
[]
[]
[]
[]
[]
[]
[]
[]
[]
[]
[]
[]
[]
[]
[]
[]
[]
[]
[]
[]
[]
[]
[]
[]
[null,null,null,"BR/REG-18143c (actief)"]
[]
[]
[]
[]
[]
[]
[]
[]
[]
[]
[]
[]
[]
[]
[]
[]
[null,null,null,"BR/REG-18143c (actief)"]
[]
[]
[]
[]
[]
[]
[]
[]
[]
[]
[]
[]
[]
[]
[]
[]
[null,null,null,"BR/REG-18143c (actief)"]
[]
[]
[]
[]
[]
[]
[]
[]
[]
[]
[]
[]
[]
[]
[]
[]
[null,null,null,"BR/REG-18143c (actief)"]

{"sheet":"Beheerskosten","index":12,"n_rows":128,"n_cols":6,"rows_kept":128,"cut":false,"hidden":false,"merged":[[5,0,5,3],[6,0,6,3],[7,0,7,3],[8,0,8,3],[9,0,9,3]]}
[" KWARTAALSTAAT Wlz 2018 4e KWARTAAL - Wlz-REGIO"]
[{"$f":"CONCATENATE(\" UZOVI: \",NAW_gegevens!naw_uzovi_zorgkantoor,\"   Wlz-regio: \",NAW_gegevens!naw_naam_zorgkantoor,\"   Wlz-uitvoerder: \",NAW_gegevens!$B$6,)","v":" UZOVI:    Wlz-regio:    Wlz-uitvoerder: "}]
[]
[]
[" SPECIFICATIE BEHEERSKOSTEN"]
[" TOTAAL BEHEERSKOSTEN (INCLUSIEF AZR)",null,null,null,"BEDRAG"]
[" Kosten intern personeel"]
[" Kosten extern personeel"]
[" Overige beheerskosten"]
[" TOTAAL BEHEERSKOSTEN",null,null,null,{"$f":"SUM(E7:E9)","v":0}]
[]
[]
[]
[]
[]
[]
[]
[]
[]
[]
[]
[]
[]
[]
[]
[]
[]
[]
[]
[]
[]
[]
[]
[]
[]
[]
[]
[]
[]
[]
[]
[]
[]
[]
[]
[]
[]
[]
[]
[]
[]
[]
[]
[]
[]
[]
[]
[]
[]
[]
[]
[]
[]
[]
[]
[]
[]
[]
[]
[]
[]
[]
[]
[]
[]
[]
[null,null,null,null,null,"BR/REG-18143c (actief)"]
[]
[]
[]
[]
[]
[]
[]
[]
[]
[]
[]
[]
[]
[]
[]
[]
[null,null,null,null,null,"BR/REG-18143c (actief)"]
[]
[]
[]
[]
[]
[]
[]
[]
[]
[]
[]
[]
[]
[]
[]
[]
[null,null,null,null,null,"BR/REG-18143c (actief)"]
[]
[]
[]
[]
[]
[]
[]
[]
[]
[]
[]
[]
[]
[]
[]
[]
[null,null,null,null,null,"BR/REG-18143c (actief)"]

{"sheet":"Blad1","index":13,"n_rows":381,"n_cols":6,"rows_kept":381,"cut":false,"hidden":true,"merged":[]}
[70121333,{"$f":"'Volledig pakket thuis'!$C$35","v":0},null,null,null,"*='Volledig pakket thuis'!$C$35"]
[70121334,{"$f":"'Volledig pakket thuis'!$D$35","v":0},null,null,null,"*='Volledig pakket thuis'!$D$35"]
[70121335,{"$f":"'Volledig pakket thuis'!$C$36","v":0},null,null,null,"*='Volledig pakket thuis'!$C$36"]
[70121336,{"$f":"'Volledig pakket thuis'!$D$36","v":0},null,null,null,"*='Volledig pakket thuis'!$D$36"]
[70121337,{"$f":"'Volledig pakket thuis'!$C$37","v":0},null,null,null,"*='Volledig pakket thuis'!$C$37"]
[70121338,{"$f":"'Volledig pakket thuis'!$D$37","v":0},null,null,null,"*='Volledig pakket thuis'!$D$37"]
[70121339,{"$f":"'Volledig pakket thuis'!$C$38","v":0},null,null,null,"*='Volledig pakket thuis'!$C$38"]
[70121340,{"$f":"'Volledig pakket thuis'!$D$38","v":0},null,null,null,"*='Volledig pakket thuis'!$D$38"]
[70121341,{"$f":"'Volledig pakket thuis'!$C$39","v":0},null,null,null,"*='Volledig pakket thuis'!$C$39"]
[70121342,{"$f":"'Volledig pakket thuis'!$D$39","v":0},null,null,null,"*='Volledig pakket thuis'!$D$39"]
[70121343,{"$f":"'Volledig pakket thuis'!$C$40","v":0},null,null,null,"*='Volledig pakket thuis'!$C$40"]
[70121344,{"$f":"'Volledig pakket thuis'!$D$40","v":0},null,null,null,"*='Volledig pakket thuis'!$D$40"]
[70121345,{"$f":"'Volledig pakket thuis'!$C$41","v":0},null,null,null,"*='Volledig pakket thuis'!$C$41"]
[70121346,{"$f":"'Volledig pakket thuis'!$D$41","v":0},null,null,null,"*='Volledig pakket thuis'!$D$41"]
[70121347,{"$f":"'Volledig pakket thuis'!$C$42","v":0},null,null,null,"*='Volledig pakket thuis'!$C$42"]
[70121348,{"$f":"'Volledig pakket thuis'!$D$42","v":0},null,null,null,"*='Volledig pakket thuis'!$D$42"]
[70121349,{"$f":"'Volledig pakket thuis'!$C$23","v":0},null,null,null,"*='Volledig pakket thuis'!$C$23"]
[70121350,{"$f":"'Volledig pakket thuis'!$D$23","v":0},null,null,null,"*='Volledig pakket thuis'!$D$23"]
[70121351,{"$f":"'Volledig pakket thuis'!$C$24","v":0},null,null,null,"*='Volledig pakket thuis'!$C$24"]
[70121352,{"$f":"'Volledig pakket thuis'!$D$24","v":0},null,null,null,"*='Volledig pakket thuis'!$D$24"]
[70121353,{"$f":"'Volledig pakket thuis'!$C$25","v":0},null,null,null,"*='Volledig pakket thuis'!$C$25"]
[70121354,{"$f":"'Volledig pakket thuis'!$D$25","v":0},null,null,null,"*='Volledig pakket thuis'!$D$25"]
[70121355,{"$f":"'Volledig pakket thuis'!$C$26","v":0},null,null,null,"*='Volledig pakket thuis'!$C$26"]
[70121356,{"$f":"'Volledig pakket thuis'!$D$26","v":0},null,null,null,"*='Volledig pakket thuis'!$D$26"]
[70121357,{"$f":"'Volledig pakket thuis'!$C$27","v":0},null,null,null,"*='Volledig pakket thuis'!$C$27"]
[70121358,{"$f":"'Volledig pakket thuis'!$D$27","v":0},null,null,null,"*='Volledig pakket thuis'!$D$27"]
[70121359,{"$f":"'Volledig pakket thuis'!$C$28","v":0},null,null,null,"*='Volledig pakket thuis'!$C$28"]
[70121360,{"$f":"'Volledig pakket thuis'!$D$28","v":0},null,null,null,"*='Volledig pakket thuis'!$D$28"]
[70121361,{"$f":"'Volledig pakket thuis'!$C$29","v":0},null,null,null,"*='Volledig pakket thuis'!$C$29"]
[70121362,{"$f":"'Volledig pakket thuis'!$D$29","v":0},null,null,null,"*='Volledig pakket thuis'!$D$29"]
[70121363,{"$f":"'Volledig pakket thuis'!$C$30","v":0},null,null,null,"*='Volledig pakket thuis'!$C$30"]
[70121364,{"$f":"'Volledig pakket thuis'!$D$30","v":0},null,null,null,"*='Volledig pakket thuis'!$D$30"]
[70121365,{"$f":"'Volledig pakket thuis'!$C$47","v":0},null,null,null,"*='Volledig pakket thuis'!$C$47"]
[70121366,{"$f":"'Volledig pakket thuis'!$D$47","v":0},null,null,null,"*='Volledig pakket thuis'!$D$47"]
[70121367,{"$f":"'Volledig pakket thuis'!$C$48","v":0},null,null,null,"*='Volledig pakket thuis'!$C$48"]
[70121368,{"$f":"'Volledig pakket thuis'!$D$48","v":0},null,null,null,"*='Volledig pakket thuis'!$D$48"]
[70121369,{"$f":"'Volledig pakket thuis'!$C$49","v":0},null,null,null,"*='Volledig pakket thuis'!$C$49"]
[70121370,{"$f":"'Volledig pakket thuis'!$D$49","v":0},null,null,null,"*='Volledig pakket thuis'!$D$49"]
[70121371,{"$f":"'Volledig pakket thuis'!$C$50","v":0},null,null,null,"*='Volledig pakket thuis'!$C$50"]
[70121372,{"$f":"'Volledig pakket thuis'!$D$50","v":0},null,null,null,"*='Volledig pakket thuis'!$D$50"]
[70121373,{"$f":"'Volledig pakket thuis'!$C$51","v":0},null,null,null,"*='Volledig pakket thuis'!$C$51"]
[70121374,{"$f":"'Volledig pakket thuis'!$D$51","v":0},null,null,null,"*='Volledig pakket thuis'!$D$51"]
[70121375,{"$f":"'Volledig pakket thuis'!$C$56","v":0},null,null,null,"*='Volledig pakket thuis'!$C$56"]
[70121376,{"$f":"'Volledig pakket thuis'!$D$56","v":0},null,null,null,"*='Volledig pakket thuis'!$D$56"]
[70121377,{"$f":"'Volledig pakket thuis'!$C$61","v":0},null,null,null,"*='Volledig pakket thuis'!$C$61"]
[70121378,{"$f":"'Volledig pakket thuis'!$D$61","v":0},null,null,null,"*='Volledig pakket thuis'!$D$61"]
[70121379,{"$f":"'Volledig pakket thuis'!$C$62","v":0},null,null,null,"*='Volledig pakket thuis'!$C$62"]
[70121380,{"$f":"'Volledig pakket thuis'!$D$62","v":0},null,null,null,"*='Volledig pakket thuis'!$D$62"]
[70121381,{"$f":"'Volledig pakket thuis'!$C$63","v":0},null,null,null,"*='Volledig pakket thuis'!$C$63"]
[70121382,{"$f":"'Volledig pakket thuis'!$D$63","v":0},null,null,null,"*='Volledig pakket thuis'!$D$63"]
[70121383,{"$f":"'Volledig pakket thuis'!$C$64","v":0},null,null,null,"*='Volledig pakket thuis'!$C$64"]
[70121384,{"$f":"'Volledig pakket thuis'!$D$64","v":0},null,null,null,"*='Volledig pakket thuis'!$D$64"]
[70121385,{"$f":"'Volledig pakket thuis'!$C$65","v":0},null,null,null,"*='Volledig pakket thuis'!$C$65"]
[70121386,{"$f":"'Volledig pakket thuis'!$D$65","v":0},null,null,null,"*='Volledig pakket thuis'!$D$65"]
[70121387,{"$f":"'Volledig pakket thuis'!$C$66","v":0},null,null,null,"*='Volledig pakket thuis'!$C$66"]
[70121388,{"$f":"'Volledig pakket thuis'!$D$66","v":0},null,null,null,"*='Volledig pakket thuis'!$D$66"]
[70121389,{"$f":"'Volledig pakket thuis'!$C$67","v":0},null,null,null,"*='Volledig pakket thuis'!$C$67"]
[70121390,{"$f":"'Volledig pakket thuis'!$D$67","v":0},null,null,null,"*='Volledig pakket thuis'!$D$67"]
[70121391,{"$f":"'Volledig pakket thuis'!$C$72","v":0},null,null,null,"*='Volledig pakket thuis'!$C$72"]
[70121392,{"$f":"'Volledig pakket thuis'!$D$72","v":0},null,null,null,"*='Volledig pakket thuis'!$D$72"]
[70121393,{"$f":"'Volledig pakket thuis'!$C$73","v":0},null,null,null,"*='Volledig pakket thuis'!$C$73"]
[70121394,{"$f":"'Volledig pakket thuis'!$D$73","v":0},null,null,null,"*='Volledig pakket thuis'!$D$73"]
[70121395,{"$f":"'Volledig pakket thuis'!$C$74","v":0},null,null,null,"*='Volledig pakket thuis'!$C$74"]
[70121396,{"$f":"'Volledig pakket thuis'!$D$74","v":0},null,null,null,"*='Volledig pakket thuis'!$D$74"]
[70121397,{"$f":"'Volledig pakket thuis'!$C$75","v":0},null,null,null,"*='Volledig pakket thuis'!$C$75"]
[70121398,{"$f":"'Volledig pakket thuis'!$D$75","v":0},null,null,null,"*='Volledig pakket thuis'!$D$75"]
[70121399,{"$f":"'Volledig pakket thuis'!$C$76","v":0},null,null,null,"*='Volledig pakket thuis'!$C$76"]
[70121400,{"$f":"'Volledig pakket thuis'!$D$76","v":0},null,null,null,"*='Volledig pakket thuis'!$D$76"]
[70121401,{"$f":"'Volledig pakket thuis'!$C$77","v":0},null,null,null,"*='Volledig pakket thuis'!$C$77"]
[70121402,{"$f":"'Volledig pakket thuis'!$D$77","v":0},null,null,null,"*='Volledig pakket thuis'!$D$77"]
[70121403,{"$f":"'Volledig pakket thuis'!$C$78","v":0},null,null,null,"*='Volledig pakket thuis'!$C$78"]
[70121404,{"$f":"'Volledig pakket thuis'!$D$78","v":0},null,null,null,"*='Volledig pakket thuis'!$D$78"]
[70121405,{"$f":"'Volledig pakket thuis'!$C$83","v":0},null,null,null,"*='Volledig pakket thuis'!$C$83"]
[70121406,{"$f":"'Volledig pakket thuis'!$D$83","v":0},null,null,null,"*='Volledig pakket thuis'!$D$83"]
[70121407,{"$f":"'Volledig pakket thuis'!$C$84","v":0},null,null,null,"*='Volledig pakket thuis'!$C$84"]
[70121408,{"$f":"'Volledig pakket thuis'!$D$84","v":0},null,null,null,"*='Volledig pakket thuis'!$D$84"]
[70121409,{"$f":"'Volledig pakket thuis'!$C$85","v":0},null,null,null,"*='Volledig pakket thuis'!$C$85"]
[70121410,{"$f":"'Volledig pakket thuis'!$D$85","v":0},null,null,null,"*='Volledig pakket thuis'!$D$85"]
[70121411,{"$f":"'Volledig pakket thuis'!$C$86","v":0},null,null,null,"*='Volledig pakket thuis'!$C$86"]
[70121412,{"$f":"'Volledig pakket thuis'!$D$86","v":0},null,null,null,"*='Volledig pakket thuis'!$D$86"]
[70121413,{"$f":"'Volledig pakket thuis'!$C$91","v":0},null,null,null,"*='Volledig pakket thuis'!$C$91"]
[70121414,{"$f":"'Volledig pakket thuis'!$D$91","v":0},null,null,null,"*='Volledig pakket thuis'!$D$91"]
[70121415,{"$f":"'Volledig pakket thuis'!$C$92","v":0},null,null,null,"*='Volledig pakket thuis'!$C$92"]
[70121416,{"$f":"'Volledig pakket thuis'!$D$92","v":0},null,null,null,"*='Volledig pakket thuis'!$D$92"]
[70121417,{"$f":"'Volledig pakket thuis'!$C$93","v":0},null,null,null,"*='Volledig pakket thuis'!$C$93"]
[70121418,{"$f":"'Volledig pakket thuis'!$D$93","v":0},null,null,null,"*='Volledig pakket thuis'!$D$93"]
[70121419,{"$f":"'Volledig pakket thuis'!$C$94","v":0},null,null,null,"*='Volledig pakket thuis'!$C$94"]
[70121420,{"$f":"'Volledig pakket thuis'!$D$94","v":0},null,null,null,"*='Volledig pakket thuis'!$D$94"]
[70121421,{"$f":"'Volledig pakket thuis'!$C$99","v":0},null,null,null,"*='Volledig pakket thuis'!$C$99"]
[70121422,{"$f":"'Volledig pakket thuis'!$D$99","v":0},null,null,null,"*='Volledig pakket thuis'!$D$99"]
[70121423,{"$f":"'Volledig pakket thuis'!$C$100","v":0},null,null,null,"*='Volledig pakket thuis'!$C$100"]
[70121424,{"$f":"'Volledig pakket thuis'!$D$100","v":0},null,null,null,"*='Volledig pakket thuis'!$D$100"]
[70121425,{"$f":"'Volledig pakket thuis'!$C$101","v":0},null,null,null,"*='Volledig pakket thuis'!$C$101"]
[70121426,{"$f":"'Volledig pakket thuis'!$D$101","v":0},null,null,null,"*='Volledig pakket thuis'!$D$101"]
[70121427,{"$f":"'Volledig pakket thuis'!$C$102","v":0},null,null,null,"*='Volledig pakket thuis'!$C$102"]
[70121428,{"$f":"'Volledig pakket thuis'!$D$102","v":0},null,null,null,"*='Volledig pakket thuis'!$D$102"]
[70121429,{"$f":"'Volledig pakket thuis'!$C$103","v":0},null,null,null,"*='Volledig pakket thuis'!$C$103"]
[70121430,{"$f":"'Volledig pakket thuis'!$D$103","v":0},null,null,null,"*='Volledig pakket thuis'!$D$103"]
[70121431,{"$f":"'Volledig pakket thuis'!$C$108","v":0},null,null,null,"*='Volledig pakket thuis'!$C$108"]
[70121432,{"$f":"'Volledig pakket thuis'!$D$108","v":0},null,null,null,"*='Volledig pakket thuis'!$D$108"]
[70121433,{"$f":"'Volledig pakket thuis'!$C$109","v":0},null,null,null,"*='Volledig pakket thuis'!$C$109"]
[70121434,{"$f":"'Volledig pakket thuis'!$D$109","v":0},null,null,null,"*='Volledig pakket thuis'!$D$109"]
[70121435,{"$f":"'Volledig pakket thuis'!$C$110","v":0},null,null,null,"*='Volledig pakket thuis'!$C$110"]
[70121436,{"$f":"'Volledig pakket thuis'!$D$110","v":0},null,null,null,"*='Volledig pakket thuis'!$D$110"]
[70121437,{"$f":"'Volledig pakket thuis'!$C$111","v":0},null,null,null,"*='Volledig pakket thuis'!$C$111"]
[70121438,{"$f":"'Volledig pakket thuis'!$D$111","v":0},null,null,null,"*='Volledig pakket thuis'!$D$111"]
[70121439,{"$f":"'Volledig pakket thuis'!$C$112","v":0},null,null,null,"*='Volledig pakket thuis'!$C$112"]
[70121440,{"$f":"'Volledig pakket thuis'!$D$112","v":0},null,null,null,"*='Volledig pakket thuis'!$D$112"]
[70121441,{"$f":"'Volledig pakket thuis'!$C$8","v":0},null,null,null,"*='Volledig pakket thuis'!$C$8"]
[70121442,{"$f":"'Volledig pakket thuis'!$D$8","v":0},null,null,null,"*='Volledig pakket thuis'!$D$8"]
[70121443,{"$f":"'Volledig pakket thuis'!$C$9","v":0},null,null,null,"*='Volledig pakket thuis'!$C$9"]
[70121444,{"$f":"'Volledig pakket thuis'!$D$9","v":0},null,null,null,"*='Volledig pakket thuis'!$D$9"]
[70121445,{"$f":"'Volledig pakket thuis'!$C$10","v":0},null,null,null,"*='Volledig pakket thuis'!$C$10"]
[70121446,{"$f":"'Volledig pakket thuis'!$D$10","v":0},null,null,null,"*='Volledig pakket thuis'!$D$10"]
[70121447,{"$f":"'Volledig pakket thuis'!$C$11","v":0},null,null,null,"*='Volledig pakket thuis'!$C$11"]
[70121448,{"$f":"'Volledig pakket thuis'!$D$11","v":0},null,null,null,"*='Volledig pakket thuis'!$D$11"]
[70121449,{"$f":"'Volledig pakket thuis'!$C$12","v":0},null,null,null,"*='Volledig pakket thuis'!$C$12"]
[70121450,{"$f":"'Volledig pakket thuis'!$D$12","v":0},null,null,null,"*='Volledig pakket thuis'!$D$12"]
[70121451,{"$f":"'Volledig pakket thuis'!$C$13","v":0},null,null,null,"*='Volledig pakket thuis'!$C$13"]
[70121452,{"$f":"'Volledig pakket thuis'!$D$13","v":0},null,null,null,"*='Volledig pakket thuis'!$D$13"]
[70121453,{"$f":"'Volledig pakket thuis'!$C$14","v":0},null,null,null,"*='Volledig pakket thuis'!$C$14"]
[70121454,{"$f":"'Volledig pakket thuis'!$D$14","v":0},null,null,null,"*='Volledig pakket thuis'!$D$14"]
[70121455,{"$f":"'Volledig pakket thuis'!$C$15","v":0},null,null,null,"*='Volledig pakket thuis'!$C$15"]
[70121456,{"$f":"'Volledig pakket thuis'!$D$15","v":0},null,null,null,"*='Volledig pakket thuis'!$D$15"]
[70121457,{"$f":"'Volledig pakket thuis'!$C$16","v":0},null,null,null,"*='Volledig pakket thuis'!$C$16"]
[70121458,{"$f":"'Volledig pakket thuis'!$D$16","v":0},null,null,null,"*='Volledig pakket thuis'!$D$16"]
[70121459,{"$f":"'Volledig pakket thuis'!$C$17","v":0},null,null,null,"*='Volledig pakket thuis'!$C$17"]
[70121460,{"$f":"'Volledig pakket thuis'!$D$17","v":0},null,null,null,"*='Volledig pakket thuis'!$D$17"]
[70121621,{"$f":"'Zorg via CAK - AK en ZMV'!$E$7","v":0},null,null,null,"*='Zorg via CAK - AK en ZMV'!$E$7"]
[70121811,{"$f":"'Zorg via CAK - ZZV'!$D$9","v":0},null,null,null,"*='Zorg via CAK - ZZV'!$D$9"]
[70121812,{"$f":"'Zorg via CAK - ZZV'!$E$9","v":0},null,null,null,"*='Zorg via CAK - ZZV'!$E$9"]
[70121807,{"$f":"'Zorg via CAK - ZZV'!$D$10","v":0},null,null,null,"*='Zorg via CAK - ZZV'!$D$10"]
[70121808,{"$f":"'Zorg via CAK - ZZV'!$E$10","v":0},null,null,null,"*='Zorg via CAK - ZZV'!$E$10"]
[70121809,{"$f":"'Zorg via CAK - ZZV'!$D$11","v":0},null,null,null,"*='Zorg via CAK - ZZV'!$D$11"]
[70121810,{"$f":"'Zorg via CAK - ZZV'!$E$11","v":0},null,null,null,"*='Zorg via CAK - ZZV'!$E$11"]
[70121813,{"$f":"'Zorg via CAK - ZZV'!$D$12","v":0},null,null,null,"*='Zorg via CAK - ZZV'!$D$12"]
[70121814,{"$f":"'Zorg via CAK - ZZV'!$E$12","v":0},null,null,null,"*='Zorg via CAK - ZZV'!$E$12"]
[70121815,{"$f":"'Zorg via CAK - ZZV'!$D$13","v":0},null,null,null,"*='Zorg via CAK - ZZV'!$D$13"]
[70121816,{"$f":"'Zorg via CAK - ZZV'!$E$13","v":0},null,null,null,"*='Zorg via CAK - ZZV'!$E$13"]
[70121292,{"$f":"'Zorg via CAK - ZZV'!$D$14","v":0},null,null,null,"*='Zorg via CAK - ZZV'!$D$14"]
[70121293,{"$f":"'Zorg via CAK - ZZV'!$E$14","v":0},null,null,null,"*='Zorg via CAK - ZZV'!$E$14"]
[70121294,{"$f":"'Zorg via CAK - ZZV'!$D$15","v":0},null,null,null,"*='Zorg via CAK - ZZV'!$D$15"]
[70121295,{"$f":"'Zorg via CAK - ZZV'!$E$15","v":0},null,null,null,"*='Zorg via CAK - ZZV'!$E$15"]
[70121296,{"$f":"'Zorg via CAK - ZZV'!$D$16","v":0},null,null,null,"*='Zorg via CAK - ZZV'!$D$16"]
[70121297,{"$f":"'Zorg via CAK - ZZV'!$E$16","v":0},null,null,null,"*='Zorg via CAK - ZZV'!$E$16"]
[70121298,{"$f":"'Zorg via CAK - ZZV'!$D$17","v":0},null,null,null,"*='Zorg via CAK - ZZV'!$D$17"]
[70121299,{"$f":"'Zorg via CAK - ZZV'!$E$17","v":0},null,null,null,"*='Zorg via CAK - ZZV'!$E$17"]
[70121308,{"$f":"'Zorg via CAK - ZZV'!$D$31","v":0},null,null,null,"*='Zorg via CAK - ZZV'!$D$31"]
[70121309,{"$f":"'Zorg via CAK - ZZV'!$E$31","v":0},null,null,null,"*='Zorg via CAK - ZZV'!$E$31"]
[70121310,{"$f":"'Zorg via CAK - ZZV'!$D$32","v":0},null,null,null,"*='Zorg via CAK - ZZV'!$D$32"]
[70121311,{"$f":"'Zorg via CAK - ZZV'!$E$32","v":0},null,null,null,"*='Zorg via CAK - ZZV'!$E$32"]
[70121312,{"$f":"'Zorg via CAK - ZZV'!$D$34","v":0},null,null,null,"*='Zorg via CAK - ZZV'!$D$34"]
[70121313,{"$f":"'Zorg via CAK - ZZV'!$E$34","v":0},null,null,null,"*='Zorg via CAK - ZZV'!$E$34"]
[70121314,{"$f":"'Zorg via CAK - ZZV'!$D$35","v":0},null,null,null,"*='Zorg via CAK - ZZV'!$D$35"]
[70121315,{"$f":"'Zorg via CAK - ZZV'!$E$35","v":0},null,null,null,"*='Zorg via CAK - ZZV'!$E$35"]
[70121316,{"$f":"'Zorg via CAK - ZZV'!$D$36","v":0},null,null,null,"*='Zorg via CAK - ZZV'!$D$36"]
[70121317,{"$f":"'Zorg via CAK - ZZV'!$E$36","v":0},null,null,null,"*='Zorg via CAK - ZZV'!$E$36"]
[70121306,{"$f":"'Zorg via CAK - ZZV'!$D$37","v":0},null,null,null,"*='Zorg via CAK - ZZV'!$D$37"]
[70121307,{"$f":"'Zorg via CAK - ZZV'!$E$37","v":0},null,null,null,"*='Zorg via CAK - ZZV'!$E$37"]
[70121318,{"$f":"'Zorg via CAK - ZZV'!$D$38","v":0},null,null,null,"*='Zorg via CAK - ZZV'!$D$38"]
[70121319,{"$f":"'Zorg via CAK - ZZV'!$E$38","v":0},null,null,null,"*='Zorg via CAK - ZZV'!$E$38"]
[70121320,{"$f":"'Zorg via CAK - ZZV'!$D$39","v":0},null,null,null,"*='Zorg via CAK - ZZV'!$D$39"]
[70121321,{"$f":"'Zorg via CAK - ZZV'!$E$39","v":0},null,null,null,"*='Zorg via CAK - ZZV'!$E$39"]
[70121304,{"$f":"'Zorg via CAK - ZZV'!$D$33","v":0},null,null,null,"*='Zorg via CAK - ZZV'!$D$33"]
[70121305,{"$f":"'Zorg via CAK - ZZV'!$E$33","v":0},null,null,null,"*='Zorg via CAK - ZZV'!$E$33"]
[70121300,{"$f":"'Zorg via CAK - ZZV'!$D$29","v":0},null,null,null,"*='Zorg via CAK - ZZV'!$D$29"]
[70121301,{"$f":"'Zorg via CAK - ZZV'!$E$29","v":0},null,null,null,"*='Zorg via CAK - ZZV'!$E$29"]
[70121302,{"$f":"'Zorg via CAK - ZZV'!$D$30","v":0},null,null,null,"*='Zorg via CAK - ZZV'!$D$30"]
[70121303,{"$f":"'Zorg via CAK - ZZV'!$E$30","v":0},null,null,null,"*='Zorg via CAK - ZZV'!$E$30"]
[70121322,{"$f":"'Zorg via CAK - ZZV'!$D$40","v":0},null,null,null,"*='Zorg via CAK - ZZV'!$D$40"]
[70121323,{"$f":"'Zorg via CAK - ZZV'!$E$40","v":0},null,null,null,"*='Zorg via CAK - ZZV'!$E$40"]
[70121324,{"$f":"'Zorg via CAK - ZZV'!$D$41","v":0},null,null,null,"*='Zorg via CAK - ZZV'!$D$41"]
[70121325,{"$f":"'Zorg via CAK - ZZV'!$E$41","v":0},null,null,null,"*='Zorg via CAK - ZZV'!$E$41"]
[70121626,{"$f":"Beheerskosten!$E$7","v":0},null,null,null,"*=Beheerskosten!$E$7"]
[70121624,{"$f":"Beheerskosten!$E$8","v":0},null,null,null,"*=Beheerskosten!$E$8"]
[70121625,{"$f":"Beheerskosten!$E$9","v":0},null,null,null,"*=Beheerskosten!$E$9"]
[70121622,{"$f":"'Zorg via CAK - ZZV'!$D$8","v":0},null,null,null,"*='Zorg via CAK - ZZV'!$D$8"]
[70121623,{"$f":"'Zorg via CAK - ZZV'!$E$8","v":0},null,null,null,"*='Zorg via CAK - ZZV'!$E$8"]
[70121715,{"$f":"'Zorg via CAK - AK en ZMV'!$D$27","v":0},null,null,null,"*='Zorg via CAK - AK en ZMV'!$D$27"]
[70121716,{"$f":"'Zorg via CAK - AK en ZMV'!$E$27","v":0},null,null,null,"*='Zorg via CAK - AK en ZMV'!$E$27"]
[70121717,{"$f":"'Zorg via CAK - AK en ZMV'!$D$28","v":0},null,null,null,"*='Zorg via CAK - AK en ZMV'!$D$28"]
[70121718,{"$f":"'Zorg via CAK - AK en ZMV'!$E$28","v":0},null,null,null,"*='Zorg via CAK - AK en ZMV'!$E$28"]
[70121719,{"$f":"'Zorg via CAK - AK en ZMV'!$D$29","v":0},null,null,null,"*='Zorg via CAK - AK en ZMV'!$D$29"]
[70121720,{"$f":"'Zorg via CAK - AK en ZMV'!$E$29","v":0},null,null,null,"*='Zorg via CAK - AK en ZMV'!$E$29"]
[70121721,{"$f":"'Zorg via CAK - AK en ZMV'!$D$30","v":0},null,null,null,"*='Zorg via CAK - AK en ZMV'!$D$30"]
[70121722,{"$f":"'Zorg via CAK - AK en ZMV'!$E$30","v":0},null,null,null,"*='Zorg via CAK - AK en ZMV'!$E$30"]
[70121723,{"$f":"'Zorg via CAK - AK en ZMV'!$D$32","v":0},null,null,null,"*='Zorg via CAK - AK en ZMV'!$D$32"]
[70121724,{"$f":"'Zorg via CAK - AK en ZMV'!$E$32","v":0},null,null,null,"*='Zorg via CAK - AK en ZMV'!$E$32"]
[70121725,{"$f":"'Zorg via CAK - AK en ZMV'!$D$33","v":0},null,null,null,"*='Zorg via CAK - AK en ZMV'!$D$33"]
[70121726,{"$f":"'Zorg via CAK - AK en ZMV'!$E$33","v":0},null,null,null,"*='Zorg via CAK - AK en ZMV'!$E$33"]
[70121727,{"$f":"'Zorg via CAK - AK en ZMV'!$D$34","v":0},null,null,null,"*='Zorg via CAK - AK en ZMV'!$D$34"]
[70121728,{"$f":"'Zorg via CAK - AK en ZMV'!$E$34","v":0},null,null,null,"*='Zorg via CAK - AK en ZMV'!$E$34"]
[70121729,{"$f":"'Zorg via CAK - AK en ZMV'!$D$31","v":0},null,null,null,"*='Zorg via CAK - AK en ZMV'!$D$31"]
[70121730,{"$f":"'Zorg via CAK - AK en ZMV'!$E$31","v":0},null,null,null,"*='Zorg via CAK - AK en ZMV'!$E$31"]
[70121761,{"$f":"'Zorg via CAK - AK en ZMV'!$D$12","v":0},null,null,null,"*='Zorg via CAK - AK en ZMV'!$D$12"]
[70121762,{"$f":"'Zorg via CAK - AK en ZMV'!$E$12","v":0},null,null,null,"*='Zorg via CAK - AK en ZMV'!$E$12"]
[70121763,{"$f":"'Zorg via CAK - AK en ZMV'!$D$13","v":0},null,null,null,"*='Zorg via CAK - AK en ZMV'!$D$13"]
[70121764,{"$f":"'Zorg via CAK - AK en ZMV'!$E$13","v":0},null,null,null,"*='Zorg via CAK - AK en ZMV'!$E$13"]
[70121765,{"$f":"'Zorg via CAK - AK en ZMV'!$D$14","v":0},null,null,null,"*='Zorg via CAK - AK en ZMV'!$D$14"]
[70121766,{"$f":"'Zorg via CAK - AK en ZMV'!$E$14","v":0},null,null,null,"*='Zorg via CAK - AK en ZMV'!$E$14"]
[70121767,{"$f":"'Zorg via CAK - AK en ZMV'!$D$15","v":0},null,null,null,"*='Zorg via CAK - AK en ZMV'!$D$15"]
[70121768,{"$f":"'Zorg via CAK - AK en ZMV'!$E$15","v":0},null,null,null,"*='Zorg via CAK - AK en ZMV'!$E$15"]
[70121769,{"$f":"'Zorg via CAK - AK en ZMV'!$D$16","v":0},null,null,null,"*='Zorg via CAK - AK en ZMV'!$D$16"]
[70121770,{"$f":"'Zorg via CAK - AK en ZMV'!$E$16","v":0},null,null,null,"*='Zorg via CAK - AK en ZMV'!$E$16"]
[70121771,{"$f":"'Zorg via CAK - AK en ZMV'!$D$17","v":0},null,null,null,"*='Zorg via CAK - AK en ZMV'!$D$17"]
[70121772,{"$f":"'Zorg via CAK - AK en ZMV'!$E$17","v":0},null,null,null,"*='Zorg via CAK - AK en ZMV'!$E$17"]
[70121759,{"$f":"'Zorg via CAK - AK en ZMV'!$D$18","v":0},null,null,null,"*='Zorg via CAK - AK en ZMV'!$D$18"]
[70121760,{"$f":"'Zorg via CAK - AK en ZMV'!$E$18","v":0},null,null,null,"*='Zorg via CAK - AK en ZMV'!$E$18"]
[70121773,{"$f":"'Zorg via CAK - AK en ZMV'!$D$19","v":0},null,null,null,"*='Zorg via CAK - AK en ZMV'!$D$19"]
[70121774,{"$f":"'Zorg via CAK - AK en ZMV'!$E$19","v":0},null,null,null,"*='Zorg via CAK - AK en ZMV'!$E$19"]
[70121775,{"$f":"'Zorg via CAK - AK en ZMV'!$D$20","v":0},null,null,null,"*='Zorg via CAK - AK en ZMV'!$D$20"]
[70121776,{"$f":"'Zorg via CAK - AK en ZMV'!$E$20","v":0},null,null,null,"*='Zorg via CAK - AK en ZMV'!$E$20"]
[70121777,{"$f":"'Zorg via CAK - AK en ZMV'!$D$21","v":0},null,null,null,"*='Zorg via CAK - AK en ZMV'!$D$21"]
[70121778,{"$f":"'Zorg via CAK - AK en ZMV'!$E$21","v":0},null,null,null,"*='Zorg via CAK - AK en ZMV'!$E$21"]
[70121779,{"$f":"'Zorg via CAK - AK en ZMV'!$D$132","v":0},null,null,null,"*='Zorg via CAK - AK en ZMV'!$D$132"]
[70121780,{"$f":"'Zorg via CAK - AK en ZMV'!$E$132","v":0},null,null,null,"*='Zorg via CAK - AK en ZMV'!$E$132"]
[70121781,{"$f":"'Zorg via CAK - AK en ZMV'!$D$133","v":0},null,null,null,"*='Zorg via CAK - AK en ZMV'!$D$133"]
[70121782,{"$f":"'Zorg via CAK - AK en ZMV'!$E$133","v":0},null,null,null,"*='Zorg via CAK - AK en ZMV'!$E$133"]
[70121783,{"$f":"'Zorg via CAK - AK en ZMV'!$D$134","v":0},null,null,null,"*='Zorg via CAK - AK en ZMV'!$D$134"]
[70121784,{"$f":"'Zorg via CAK - AK en ZMV'!$E$134","v":0},null,null,null,"*='Zorg via CAK - AK en ZMV'!$E$134"]
[70121785,{"$f":"'Zorg via CAK - AK en ZMV'!$D$135","v":0},null,null,null,"*='Zorg via CAK - AK en ZMV'!$D$135"]
[70121786,{"$f":"'Zorg via CAK - AK en ZMV'!$E$135","v":0},null,null,null,"*='Zorg via CAK - AK en ZMV'!$E$135"]
[70121787,{"$f":"'Zorg via CAK - AK en ZMV'!$D$136","v":0},null,null,null,"*='Zorg via CAK - AK en ZMV'!$D$136"]
[70121788,{"$f":"'Zorg via CAK - AK en ZMV'!$E$136","v":0},null,null,null,"*='Zorg via CAK - AK en ZMV'!$E$136"]
[70121789,{"$f":"'Zorg via CAK - AK en ZMV'!$D$137","v":0},null,null,null,"*='Zorg via CAK - AK en ZMV'!$D$137"]
[70121790,{"$f":"'Zorg via CAK - AK en ZMV'!$E$137","v":0},null,null,null,"*='Zorg via CAK - AK en ZMV'!$E$137"]
[70121791,{"$f":"'Zorg via CAK - AK en ZMV'!$D$138","v":0},null,null,null,"*='Zorg via CAK - AK en ZMV'!$D$138"]
[70121792,{"$f":"'Zorg via CAK - AK en ZMV'!$E$138","v":0},null,null,null,"*='Zorg via CAK - AK en ZMV'!$E$138"]
[70121731,{"$f":"'Zorg via CAK - AK en ZMV'!$D$39","v":0},null,null,null,"*='Zorg via CAK - AK en ZMV'!$D$39"]
[70121732,{"$f":"'Zorg via CAK - AK en ZMV'!$E$39","v":0},null,null,null,"*='Zorg via CAK - AK en ZMV'!$E$39"]
[70121733,{"$f":"'Zorg via CAK - AK en ZMV'!$D$40","v":0},null,null,null,"*='Zorg via CAK - AK en ZMV'!$D$40"]
[70121734,{"$f":"'Zorg via CAK - AK en ZMV'!$E$40","v":0},null,null,null,"*='Zorg via CAK - AK en ZMV'!$E$40"]
[70121735,{"$f":"'Zorg via CAK - AK en ZMV'!$D$41","v":0},null,null,null,"*='Zorg via CAK - AK en ZMV'!$D$41"]
[70121736,{"$f":"'Zorg via CAK - AK en ZMV'!$E$41","v":0},null,null,null,"*='Zorg via CAK - AK en ZMV'!$E$41"]
[70121737,{"$f":"'Zorg via CAK - AK en ZMV'!$D$42","v":0},null,null,null,"*='Zorg via CAK - AK en ZMV'!$D$42"]
[70121738,{"$f":"'Zorg via CAK - AK en ZMV'!$E$42","v":0},null,null,null,"*='Zorg via CAK - AK en ZMV'!$E$42"]
[70121739,{"$f":"'Zorg via CAK - AK en ZMV'!$D$44","v":0},null,null,null,"*='Zorg via CAK - AK en ZMV'!$D$44"]
[70121740,{"$f":"'Zorg via CAK - AK en ZMV'!$E$44","v":0},null,null,null,"*='Zorg via CAK - AK en ZMV'!$E$44"]
[70121741,{"$f":"'Zorg via CAK - AK en ZMV'!$D$45","v":0},null,null,null,"*='Zorg via CAK - AK en ZMV'!$D$45"]
[70121742,{"$f":"'Zorg via CAK - AK en ZMV'!$E$45","v":0},null,null,null,"*='Zorg via CAK - AK en ZMV'!$E$45"]
[70121743,{"$f":"'Zorg via CAK - AK en ZMV'!$D$46","v":0},null,null,null,"*='Zorg via CAK - AK en ZMV'!$D$46"]
[70121744,{"$f":"'Zorg via CAK - AK en ZMV'!$E$46","v":0},null,null,null,"*='Zorg via CAK - AK en ZMV'!$E$46"]
[70121745,{"$f":"'Zorg via CAK - AK en ZMV'!$D$43","v":0},null,null,null,"*='Zorg via CAK - AK en ZMV'!$D$43"]
[70121746,{"$f":"'Zorg via CAK - AK en ZMV'!$E$43","v":0},null,null,null,"*='Zorg via CAK - AK en ZMV'!$E$43"]
[70121797,{"$f":"'Zorg via CAK - AK en ZMV'!$D$143","v":0},null,null,null,"*='Zorg via CAK - AK en ZMV'!$D$143"]
[70121798,{"$f":"'Zorg via CAK - AK en ZMV'!$E$143","v":0},null,null,null,"*='Zorg via CAK - AK en ZMV'!$E$143"]
[70121799,{"$f":"'Zorg via CAK - AK en ZMV'!$D$144","v":0},null,null,null,"*='Zorg via CAK - AK en ZMV'!$D$144"]
[70121800,{"$f":"'Zorg via CAK - AK en ZMV'!$E$144","v":0},null,null,null,"*='Zorg via CAK - AK en ZMV'!$E$144"]
[70121801,{"$f":"'Zorg via CAK - AK en ZMV'!$D$145","v":0},null,null,null,"*='Zorg via CAK - AK en ZMV'!$D$145"]
[70121802,{"$f":"'Zorg via CAK - AK en ZMV'!$E$145","v":0},null,null,null,"*='Zorg via CAK - AK en ZMV'!$E$145"]
[70121803,{"$f":"'Zorg via CAK - AK en ZMV'!$D$146","v":0},null,null,null,"*='Zorg via CAK - AK en ZMV'!$D$146"]
[70121804,{"$f":"'Zorg via CAK - AK en ZMV'!$E$146","v":0},null,null,null,"*='Zorg via CAK - AK en ZMV'!$E$146"]
[70121805,{"$f":"'Zorg via CAK - AK en ZMV'!$D$147","v":0},null,null,null,"*='Zorg via CAK - AK en ZMV'!$D$147"]
[70121806,{"$f":"'Zorg via CAK - AK en ZMV'!$E$147","v":0},null,null,null,"*='Zorg via CAK - AK en ZMV'!$E$147"]
[70121793,{"$f":"'Zorg via CAK - AK en ZMV'!$D$148","v":0},null,null,null,"*='Zorg via CAK - AK en ZMV'!$D$148"]
[70121794,{"$f":"'Zorg via CAK - AK en ZMV'!$E$148","v":0},null,null,null,"*='Zorg via CAK - AK en ZMV'!$E$148"]
[70121795,{"$f":"'Zorg via CAK - AK en ZMV'!$D$149","v":0},null,null,null,"*='Zorg via CAK - AK en ZMV'!$D$149"]
[70121796,{"$f":"'Zorg via CAK - AK en ZMV'!$E$149","v":0},null,null,null,"*='Zorg via CAK - AK en ZMV'!$E$149"]
[70121747,{"$f":"'Zorg via CAK - AK en ZMV'!$D$51","v":0},null,null,null,"*='Zorg via CAK - AK en ZMV'!$D$51"]
[70121748,{"$f":"'Zorg via CAK - AK en ZMV'!$E$51","v":0},null,null,null,"*='Zorg via CAK - AK en ZMV'!$E$51"]
[70121749,{"$f":"'Zorg via CAK - AK en ZMV'!$D$52","v":0},null,null,null,"*='Zorg via CAK - AK en ZMV'!$D$52"]
[70121750,{"$f":"'Zorg via CAK - AK en ZMV'!$E$52","v":0},null,null,null,"*='Zorg via CAK - AK en ZMV'!$E$52"]
[70121751,{"$f":"'Zorg via CAK - AK en ZMV'!$D$53","v":0},null,null,null,"*='Zorg via CAK - AK en ZMV'!$D$53"]
[70121752,{"$f":"'Zorg via CAK - AK en ZMV'!$E$53","v":0},null,null,null,"*='Zorg via CAK - AK en ZMV'!$E$53"]
[70121753,{"$f":"'Zorg via CAK - AK en ZMV'!$D$54","v":0},null,null,null,"*='Zorg via CAK - AK en ZMV'!$D$54"]
[70121754,{"$f":"'Zorg via CAK - AK en ZMV'!$E$54","v":0},null,null,null,"*='Zorg via CAK - AK en ZMV'!$E$54"]
[70121755,{"$f":"'Zorg via CAK - AK en ZMV'!$D$55","v":0},null,null,null,"*='Zorg via CAK - AK en ZMV'!$D$55"]
[70121756,{"$f":"'Zorg via CAK - AK en ZMV'!$E$55","v":0},null,null,null,"*='Zorg via CAK - AK en ZMV'!$E$55"]
[70121599,{"$f":"'Zorg via CAK - ZZV'!$D$19","v":0},null,null,null,"*='Zorg via CAK - ZZV'!$D$19"]
[70121600,{"$f":"'Zorg via CAK - ZZV'!$E$19","v":0},null,null,null,"*='Zorg via CAK - ZZV'!$E$19"]
[70121601,{"$f":"'Zorg via CAK - ZZV'!$D$20","v":0},null,null,null,"*='Zorg via CAK - ZZV'!$D$20"]
[70121602,{"$f":"'Zorg via CAK - ZZV'!$E$20","v":0},null,null,null,"*='Zorg via CAK - ZZV'!$E$20"]
[70121603,{"$f":"'Zorg via CAK - ZZV'!$D$21","v":0},null,null,null,"*='Zorg via CAK - ZZV'!$D$21"]
[70121604,{"$f":"'Zorg via CAK - ZZV'!$E$21","v":0},null,null,null,"*='Zorg via CAK - ZZV'!$E$21"]
[70121615,{"$f":"'Zorg via CAK - ZZV'!$D$26","v":0},null,null,null,"*='Zorg via CAK - ZZV'!$D$26"]
[70121616,{"$f":"'Zorg via CAK - ZZV'!$E$26","v":0},null,null,null,"*='Zorg via CAK - ZZV'!$E$26"]
[70121617,{"$f":"'Zorg via CAK - ZZV'!$D$27","v":0},null,null,null,"*='Zorg via CAK - ZZV'!$D$27"]
[70121618,{"$f":"'Zorg via CAK - ZZV'!$E$27","v":0},null,null,null,"*='Zorg via CAK - ZZV'!$E$27"]
[70121605,{"$f":"'Zorg via CAK - ZZV'!$D$18","v":0},null,null,null,"*='Zorg via CAK - ZZV'!$D$18"]
[70121606,{"$f":"'Zorg via CAK - ZZV'!$E$18","v":0},null,null,null,"*='Zorg via CAK - ZZV'!$E$18"]
[70121607,{"$f":"'Zorg via CAK - ZZV'!$D$22","v":0},null,null,null,"*='Zorg via CAK - ZZV'!$D$22"]
[70121608,{"$f":"'Zorg via CAK - ZZV'!$E$22","v":0},null,null,null,"*='Zorg via CAK - ZZV'!$E$22"]
[70121609,{"$f":"'Zorg via CAK - ZZV'!$D$23","v":0},null,null,null,"*='Zorg via CAK - ZZV'!$D$23"]
[70121610,{"$f":"'Zorg via CAK - ZZV'!$E$23","v":0},null,null,null,"*='Zorg via CAK - ZZV'!$E$23"]
[70121611,{"$f":"'Zorg via CAK - ZZV'!$D$24","v":0},null,null,null,"*='Zorg via CAK - ZZV'!$D$24"]
[70121612,{"$f":"'Zorg via CAK - ZZV'!$E$24","v":0},null,null,null,"*='Zorg via CAK - ZZV'!$E$24"]
[70121613,{"$f":"'Zorg via CAK - ZZV'!$D$25","v":0},null,null,null,"*='Zorg via CAK - ZZV'!$D$25"]
[70121614,{"$f":"'Zorg via CAK - ZZV'!$E$25","v":0},null,null,null,"*='Zorg via CAK - ZZV'!$E$25"]
[70121619,{"$f":"'Zorg via CAK - ZZV'!$D$28","v":0},null,null,null,"*='Zorg via CAK - ZZV'!$D$28"]
[70121620,{"$f":"'Zorg via CAK - ZZV'!$E$28","v":0},null,null,null,"*='Zorg via CAK - ZZV'!$E$28"]
[70121691,{"$f":"'Dagbesteding en vervoer'!$B$19","v":0},null,null,null,"*='Dagbesteding en vervoer'!$B$19"]
[70121692,{"$f":"'Dagbesteding en vervoer'!$C$19","v":0},null,null,null,"*='Dagbesteding en vervoer'!$C$19"]
[70121693,{"$f":"'Dagbesteding en vervoer'!$B$20","v":0},null,null,null,"*='Dagbesteding en vervoer'!$B$20"]
[70121694,{"$f":"'Dagbesteding en vervoer'!$C$20","v":0},null,null,null,"*='Dagbesteding en vervoer'!$C$20"]
[70121695,{"$f":"'Dagbesteding en vervoer'!$B$21","v":0},null,null,null,"*='Dagbesteding en vervoer'!$B$21"]
[70121696,{"$f":"'Dagbesteding en vervoer'!$C$21","v":0},null,null,null,"*='Dagbesteding en vervoer'!$C$21"]
[70121697,{"$f":"'Dagbesteding en vervoer'!$B$22","v":0},null,null,null,"*='Dagbesteding en vervoer'!$B$22"]
[70121698,{"$f":"'Dagbesteding en vervoer'!$C$22","v":0},null,null,null,"*='Dagbesteding en vervoer'!$C$22"]
[70121701,{"$f":"'Dagbesteding en vervoer'!$B$28","v":0},null,null,null,"*='Dagbesteding en vervoer'!$B$28"]
[70121702,{"$f":"'Dagbesteding en vervoer'!$C$28","v":0},null,null,null,"*='Dagbesteding en vervoer'!$C$28"]
[70121707,{"$f":"'Dagbesteding en vervoer'!$B$8","v":0},null,null,null,"*='Dagbesteding en vervoer'!$B$8"]
[70121708,{"$f":"'Dagbesteding en vervoer'!$C$8","v":0},null,null,null,"*='Dagbesteding en vervoer'!$C$8"]
[70121709,{"$f":"'Dagbesteding en vervoer'!$B$9","v":0},null,null,null,"*='Dagbesteding en vervoer'!$B$9"]
[70121710,{"$f":"'Dagbesteding en vervoer'!$C$9","v":0},null,null,null,"*='Dagbesteding en vervoer'!$C$9"]
[70121711,{"$f":"'Dagbesteding en vervoer'!$B$10","v":0},null,null,null,"*='Dagbesteding en vervoer'!$B$10"]
[70121712,{"$f":"'Dagbesteding en vervoer'!$C$10","v":0},null,null,null,"*='Dagbesteding en vervoer'!$C$10"]
[70121713,{"$f":"'Dagbesteding en vervoer'!$B$11","v":0},null,null,null,"*='Dagbesteding en vervoer'!$B$11"]
[70121714,{"$f":"'Dagbesteding en vervoer'!$C$11","v":0},null,null,null,"*='Dagbesteding en vervoer'!$C$11"]
[70121703,{"$f":"'Dagbesteding en vervoer'!$B$12","v":0},null,null,null,"*='Dagbesteding en vervoer'!$B$12"]
[70121704,{"$f":"'Dagbesteding en vervoer'!$C$12","v":0},null,null,null,"*='Dagbesteding en vervoer'!$C$12"]
[70121705,{"$f":"'Dagbesteding en vervoer'!$B$14","v":0},null,null,null,"*='Dagbesteding en vervoer'!$B$14"]
[70121706,{"$f":"'Dagbesteding en vervoer'!$C$14","v":0},null,null,null,"*='Dagbesteding en vervoer'!$C$14"]
[70121757,{"$f":"'Zorg via CAK - AK en ZMV'!$D$65","v":0},null,null,null,"*='Zorg via CAK - AK en ZMV'!$D$65"]
[70121758,{"$f":"'Zorg via CAK - AK en ZMV'!$E$65","v":0},null,null,null,"*='Zorg via CAK - AK en ZMV'!$E$65"]
[70121627,{"$f":"'Zorg via CAK - AK en ZMV'!$D$70","v":0},null,null,null,"*='Zorg via CAK - AK en ZMV'!$D$70"]
[70121628,{"$f":"'Zorg via CAK - AK en ZMV'!$E$70","v":0},null,null,null,"*='Zorg via CAK - AK en ZMV'!$E$70"]
[70121629,{"$f":"'Zorg via CAK - AK en ZMV'!$D$71","v":0},null,null,null,"*='Zorg via CAK - AK en ZMV'!$D$71"]
[70121630,{"$f":"'Zorg via CAK - AK en ZMV'!$E$71","v":0},null,null,null,"*='Zorg via CAK - AK en ZMV'!$E$71"]
[70121631,{"$f":"'Zorg via CAK - AK en ZMV'!$D$72","v":0},null,null,null,"*='Zorg via CAK - AK en ZMV'!$D$72"]
[70121632,{"$f":"'Zorg via CAK - AK en ZMV'!$E$72","v":0},null,null,null,"*='Zorg via CAK - AK en ZMV'!$E$72"]
[70121633,{"$f":"'Zorg via CAK - AK en ZMV'!$D$73","v":0},null,null,null,"*='Zorg via CAK - AK en ZMV'!$D$73"]
[70121634,{"$f":"'Zorg via CAK - AK en ZMV'!$E$73","v":0},null,null,null,"*='Zorg via CAK - AK en ZMV'!$E$73"]
[70121635,{"$f":"'Zorg via CAK - AK en ZMV'!$D$74","v":0},null,null,null,"*='Zorg via CAK - AK en ZMV'!$D$74"]
[70121636,{"$f":"'Zorg via CAK - AK en ZMV'!$E$74","v":0},null,null,null,"*='Zorg via CAK - AK en ZMV'!$E$74"]
[70121637,{"$f":"'Zorg via CAK - AK en ZMV'!$D$75","v":0},null,null,null,"*='Zorg via CAK - AK en ZMV'!$D$75"]
[70121638,{"$f":"'Zorg via CAK - AK en ZMV'!$E$75","v":0},null,null,null,"*='Zorg via CAK - AK en ZMV'!$E$75"]
[70121639,{"$f":"'Zorg via CAK - AK en ZMV'!$D$76","v":0},null,null,null,"*='Zorg via CAK - AK en ZMV'!$D$76"]
[70121640,{"$f":"'Zorg via CAK - AK en ZMV'!$E$76","v":0},null,null,null,"*='Zorg via CAK - AK en ZMV'!$E$76"]
[70121641,{"$f":"'Zorg via CAK - AK en ZMV'!$D$81","v":0},null,null,null,"*='Zorg via CAK - AK en ZMV'!$D$81"]
[70121642,{"$f":"'Zorg via CAK - AK en ZMV'!$E$81","v":0},null,null,null,"*='Zorg via CAK - AK en ZMV'!$E$81"]
[70121643,{"$f":"'Zorg via CAK - AK en ZMV'!$D$82","v":0},null,null,null,"*='Zorg via CAK - AK en ZMV'!$D$82"]
[70121644,{"$f":"'Zorg via CAK - AK en ZMV'!$E$82","v":0},null,null,null,"*='Zorg via CAK - AK en ZMV'!$E$82"]
[70121645,{"$f":"'Zorg via CAK - AK en ZMV'!$D$83","v":0},null,null,null,"*='Zorg via CAK - AK en ZMV'!$D$83"]
[70121646,{"$f":"'Zorg via CAK - AK en ZMV'!$E$83","v":0},null,null,null,"*='Zorg via CAK - AK en ZMV'!$E$83"]
[70121647,{"$f":"'Zorg via CAK - AK en ZMV'!$D$84","v":0},null,null,null,"*='Zorg via CAK - AK en ZMV'!$D$84"]
[70121648,{"$f":"'Zorg via CAK - AK en ZMV'!$E$84","v":0},null,null,null,"*='Zorg via CAK - AK en ZMV'!$E$84"]
[70121649,{"$f":"'Zorg via CAK - AK en ZMV'!$D$85","v":0},null,null,null,"*='Zorg via CAK - AK en ZMV'!$D$85"]
[70121650,{"$f":"'Zorg via CAK - AK en ZMV'!$E$85","v":0},null,null,null,"*='Zorg via CAK - AK en ZMV'!$E$85"]
[70121651,{"$f":"'Zorg via CAK - AK en ZMV'!$D$86","v":0},null,null,null,"*='Zorg via CAK - AK en ZMV'!$D$86"]
[70121652,{"$f":"'Zorg via CAK - AK en ZMV'!$E$86","v":0},null,null,null,"*='Zorg via CAK - AK en ZMV'!$E$86"]
[70121653,{"$f":"'Zorg via CAK - AK en ZMV'!$D$87","v":0},null,null,null,"*='Zorg via CAK - AK en ZMV'!$D$87"]
[70121654,{"$f":"'Zorg via CAK - AK en ZMV'!$E$87","v":0},null,null,null,"*='Zorg via CAK - AK en ZMV'!$E$87"]
[70121655,{"$f":"'Zorg via CAK - AK en ZMV'!$D$92","v":0},null,null,null,"*='Zorg via CAK - AK en ZMV'!$D$92"]
[70121656,{"$f":"'Zorg via CAK - AK en ZMV'!$E$92","v":0},null,null,null,"*='Zorg via CAK - AK en ZMV'!$E$92"]
[70121657,{"$f":"'Zorg via CAK - AK en ZMV'!$D$93","v":0},null,null,null,"*='Zorg via CAK - AK en ZMV'!$D$93"]
[70121658,{"$f":"'Zorg via CAK - AK en ZMV'!$E$93","v":0},null,null,null,"*='Zorg via CAK - AK en ZMV'!$E$93"]
[70121659,{"$f":"'Zorg via CAK - AK en ZMV'!$D$94","v":0},null,null,null,"*='Zorg via CAK - AK en ZMV'!$D$94"]
[70121660,{"$f":"'Zorg via CAK - AK en ZMV'!$E$94","v":0},null,null,null,"*='Zorg via CAK - AK en ZMV'!$E$94"]
[70121661,{"$f":"'Zorg via CAK - AK en ZMV'!$D$95","v":0},null,null,null,"*='Zorg via CAK - AK en ZMV'!$D$95"]
[70121662,{"$f":"'Zorg via CAK - AK en ZMV'!$E$95","v":0},null,null,null,"*='Zorg via CAK - AK en ZMV'!$E$95"]
[70121663,{"$f":"'Zorg via CAK - AK en ZMV'!$D$100","v":0},null,null,null,"*='Zorg via CAK - AK en ZMV'!$D$100"]
[70121664,{"$f":"'Zorg via CAK - AK en ZMV'!$E$100","v":0},null,null,null,"*='Zorg via CAK - AK en ZMV'!$E$100"]
[70121665,{"$f":"'Zorg via CAK - AK en ZMV'!$D$101","v":0},null,null,null,"*='Zorg via CAK - AK en ZMV'!$D$101"]
[70121666,{"$f":"'Zorg via CAK - AK en ZMV'!$E$101","v":0},null,null,null,"*='Zorg via CAK - AK en ZMV'!$E$101"]
[70121667,{"$f":"'Zorg via CAK - AK en ZMV'!$D$102","v":0},null,null,null,"*='Zorg via CAK - AK en ZMV'!$D$102"]
[70121668,{"$f":"'Zorg via CAK - AK en ZMV'!$E$102","v":0},null,null,null,"*='Zorg via CAK - AK en ZMV'!$E$102"]
[70121669,{"$f":"'Zorg via CAK - AK en ZMV'!$D$103","v":0},null,null,null,"*='Zorg via CAK - AK en ZMV'!$D$103"]
[70121670,{"$f":"'Zorg via CAK - AK en ZMV'!$E$103","v":0},null,null,null,"*='Zorg via CAK - AK en ZMV'!$E$103"]
[70121671,{"$f":"'Zorg via CAK - AK en ZMV'!$D$108","v":0},null,null,null,"*='Zorg via CAK - AK en ZMV'!$D$108"]
[70121672,{"$f":"'Zorg via CAK - AK en ZMV'!$E$108","v":0},null,null,null,"*='Zorg via CAK - AK en ZMV'!$E$108"]
[70121673,{"$f":"'Zorg via CAK - AK en ZMV'!$D$109","v":0},null,null,null,"*='Zorg via CAK - AK en ZMV'!$D$109"]
[70121674,{"$f":"'Zorg via CAK - AK en ZMV'!$E$109","v":0},null,null,null,"*='Zorg via CAK - AK en ZMV'!$E$109"]
[70121675,{"$f":"'Zorg via CAK - AK en ZMV'!$D$110","v":0},null,null,null,"*='Zorg via CAK - AK en ZMV'!$D$110"]
[70121676,{"$f":"'Zorg via CAK - AK en ZMV'!$E$110","v":0},null,null,null,"*='Zorg via CAK - AK en ZMV'!$E$110"]
[70121677,{"$f":"'Zorg via CAK - AK en ZMV'!$D$111","v":0},null,null,null,"*='Zorg via CAK - AK en ZMV'!$D$111"]
[70121678,{"$f":"'Zorg via CAK - AK en ZMV'!$E$111","v":0},null,null,null,"*='Zorg via CAK - AK en ZMV'!$E$111"]
[70121679,{"$f":"'Zorg via CAK - AK en ZMV'!$D$112","v":0},null,null,null,"*='Zorg via CAK - AK en ZMV'!$D$112"]
[70121680,{"$f":"'Zorg via CAK - AK en ZMV'!$E$112","v":0},null,null,null,"*='Zorg via CAK - AK en ZMV'!$E$112"]
[70121681,{"$f":"'Zorg via CAK - AK en ZMV'!$D$122","v":0},null,null,null,"*='Zorg via CAK - AK en ZMV'!$D$122"]
[70121682,{"$f":"'Zorg via CAK - AK en ZMV'!$E$122","v":0},null,null,null,"*='Zorg via CAK - AK en ZMV'!$E$122"]
[70121683,{"$f":"'Zorg via CAK - AK en ZMV'!$D$123","v":0},null,null,null,"*='Zorg via CAK - AK en ZMV'!$D$123"]
[70121684,{"$f":"'Zorg via CAK - AK en ZMV'!$E$123","v":0},null,null,null,"*='Zorg via CAK - AK en ZMV'!$E$123"]
[70121685,{"$f":"'Zorg via CAK - AK en ZMV'!$D$124","v":0},null,null,null,"*='Zorg via CAK - AK en ZMV'!$D$124"]
[70121686,{"$f":"'Zorg via CAK - AK en ZMV'!$E$124","v":0},null,null,null,"*='Zorg via CAK - AK en ZMV'!$E$124"]
[70121687,{"$f":"'Zorg via CAK - AK en ZMV'!$D$125","v":0},null,null,null,"*='Zorg via CAK - AK en ZMV'!$D$125"]
[70121688,{"$f":"'Zorg via CAK - AK en ZMV'!$E$125","v":0},null,null,null,"*='Zorg via CAK - AK en ZMV'!$E$125"]
[70121689,{"$f":"'Zorg via CAK - AK en ZMV'!$D$126","v":0},null,null,null,"*='Zorg via CAK - AK en ZMV'!$D$126"]
[70121690,{"$f":"'Zorg via CAK - AK en ZMV'!$E$126","v":0},null,null,null,"*='Zorg via CAK - AK en ZMV'!$E$126"]
[70121819,{"$f":"PGB!$C$7","v":0},null,null,null,"*=PGB!$C$7"]
[70121817,{"$f":"Meerzorg!$C$7","v":0},null,null,null,"*=Meerzorg!$C$7"]
[70121818,{"$f":"Meerzorg!$C$10","v":0},null,null,null,"*=Meerzorg!$C$10"]